Workbook

Sheet Input
B7: Development of BGS-RSCP Cost and Bid Factors for 2020/2021 BGS Filing
B8: Adjusted to Billing Time Periods
E9: Based on average of year 2016,2017 & 2018 Load Profile Information
A10: Table #1 | B10: % Usage During PJM On-Peak Period | E10: On-Peak periods defined as the 16 hr PJM Trading period, adj for NERC holidays
C11: Profile Meter Data | D11: Profile Meter Data | E11: Profile Meter Data | F11: Profile Meter Data | G11: Profile Meter Data | H11: Profile Meter Data | I11: --- Other Analysis --- | K11: Profile Meter Data | L11: Profile Meter Data
B12: (data rounded to nearest .01%) | C12: RS | D12: RHS | E12: RLM | F12: WH | G12: WHS | H12: HS | I12: PSAL | J12: BPL | K12: GLP | L12: LPL-S
B14: January | C14: 0.4687 | D14: 0.467 | E14: 0.4787 | F14: 0.4687 | G14: 0.4687 | H14: 0.458 | I14: 0.3 | J14: 0.3 | K14: 0.546 | L14: 0.5243
B15: February | C15: 0.4987 | D15: 0.4907 | E15: 0.5067 | F15: 0.4987 | G15: 0.4987 | H15: 0.478 | I15: 0.2973 | J15: 0.2973 | K15: 0.5697 | L15: 0.5503
B16: March | C16: 0.5043 | D16: 0.4957 | E16: 0.514 | F16: 0.5043 | G16: 0.5043 | H16: 0.4863 | I16: 0.264 | J16: 0.264 | K16: 0.58 | L16: 0.56
B17: April | C17: 0.4763 | D17: 0.4813 | E17: 0.4903 | F17: 0.4763 | G17: 0.4763 | H17: 0.4927 | I17: 0.219 | J17: 0.219 | K17: 0.566 | L17: 0.5433
B18: May | C18: 0.4977 | D18: 0.5087 | E18: 0.5173 | F18: 0.4977 | G18: 0.4977 | H18: 0.5857 | I18: 0.212 | J18: 0.212 | K18: 0.589 | L18: 0.5643
B19: June | C19: 0.523 | D19: 0.53 | E19: 0.5437 | F19: 0.523 | G19: 0.523 | H19: 0.6283 | I19: 0.2037 | J19: 0.2037 | K19: 0.605 | L19: 0.577
B20: July | C20: 0.4883 | D20: 0.4973 | E20: 0.5073 | F20: 0.4883 | G20: 0.4883 | H20: 0.5833 | I20: 0.183 | J20: 0.183 | K20: 0.562 | L20: 0.5287
B21: August | C21: 0.5443 | D21: 0.5537 | E21: 0.5637 | F21: 0.5443 | G21: 0.5443 | H21: 0.6393 | I21: 0.2253 | J21: 0.2253 | K21: 0.618 | L21: 0.58
B22: September | C22: 0.487 | D22: 0.4963 | E22: 0.5047 | F22: 0.487 | G22: 0.487 | H22: 0.595 | I22: 0.2267 | J22: 0.2267 | K22: 0.5707 | L22: 0.5417
B23: October | C23: 0.4993 | D23: 0.5177 | E23: 0.5183 | F23: 0.4993 | G23: 0.4993 | H23: 0.5717 | I23: 0.2693 | J23: 0.2693 | K23: 0.588 | L23: 0.5647
B24: November | C24: 0.482 | D24: 0.4827 | E24: 0.5017 | F24: 0.482 | G24: 0.482 | H24: 0.489 | I24: 0.31 | J24: 0.31 | K24: 0.5647 | L24: 0.542
B25: December | C25: 0.4547 | D25: 0.4523 | E25: 0.4683 | F25: 0.4547 | G25: 0.4547 | H25: 0.4543 | I25: 0.2987 | J25: 0.2987 | K25: 0.5263 | L25: 0.5033
E27: =E9 -> Based on average of year 2016,2017 & 2018 Load Profile Information
A28: Table #2 | B28: % Usage During PSE&G On-Peak Billing Period | E28: On-Peak periods as defined in specified rate schedule (average of %s for 2016, 2017 & 2018)
C29: Profile Meter Data | D29: Profile Meter Data
B30: (data rounded to nearest .01%) | C30: RLM | D30: LPL-S
B32: January | C32: 0.427 | D32: 0.4783
B33: February | C33: 0.4232 | D33: 0.4826
B34: March | C34: 0.4185 | D34: 0.4811
B35: April | C35: 0.4193 | D35: 0.4894
B36: May | C36: 0.4437 | D36: 0.5014
B37: June | C37: 0.46 | D37: 0.5073
B38: July | C38: 0.4865 | D38: 0.5064
B39: August | C39: 0.4862 | D39: 0.4994
B40: September | C40: 0.4875 | D40: 0.5078
B41: October | C41: 0.4618 | D41: 0.5062
B42: November | C42: 0.4361 | D42: 0.4968
B43: December | C43: 0.4285 | D43: 0.4853
A46: Table #3 | B46: Class Usage @ customer
B47: Calendar month sales forecasted for 2020, less % for LPL-Sec > 500 kW Peak Load Share
B48: in MWh | C48: RS | D48: RHS | E48: RLM | F48: WH | G48: WHS | H48: HS | I48: PSAL | J48: BPL | K48: GLP | L48: LPL-S
B50: January | C50: 1081757.889 | D50: 16281.35153 | E50: 14609.30705 | F50: 77 | G50: 2 | H50: 1987.087278 | I50: 15657 | J50: 32646 | K50: 551271.5797 | L50: 635885.5797
B51: February | C51: 926769.902 | D51: 13814.01677 | E51: 12566.685 | F51: 71 | G51: 2 | H51: 1702.360055 | I51: 13467 | J51: 27223 | K51: 520226.4705 | L51: 594602.7696
B52: March | C52: 857391.9141 | D52: 10809.64013 | E52: 11989.4619 | F52: 78 | G52: 1 | H52: 1334.444456 | I52: 12961 | J52: 27598 | K52: 530696.7117 | L52: 611529.7
B53: April | C53: 713094.8562 | D53: 6831.516734 | E53: 10156.57337 | F53: 66 | G53: 2 | H53: 901.3503364 | I53: 10692 | J53: 23860 | K53: 464119.4824 | L53: 531821.0609
B54: May | C54: 813401.0139 | D54: 4749.284958 | E54: 13047.24831 | F54: 78 | G54: 1 | H54: 404.7929199 | I54: 10116 | J54: 22188 | K54: 490162.0973 | L54: 608365.2591
B55: June | C55: 1196743.317 | D55: 5677.163368 | E55: 19706.74331 | F55: 56 | G55: 1 | H55: 603.7589313 | I55: 8906 | J55: 19116 | K55: 539921.0642 | L55: 634636.4408
B56: July | C56: 1558280.628 | D56: 6018.309189 | E56: 25395.99284 | F56: 43 | G56: 1 | H56: 622.6263979 | I56: 9387 | J56: 16613 | K56: 611191.1684 | L56: 672625.7034
B57: August | C57: 1459451.216 | D57: 6014.486827 | E57: 23262.18231 | F57: 49 | G57: 1 | H57: 673.2255129 | I57: 10539 | J57: 19843 | K57: 618380.7615 | L57: 709730.5198
B58: September | C58: 1001261.147 | D58: 4733.039919 | E58: 16059.20395 | F58: 42 | G58: 1 | H58: 458.8224833 | I58: 12185 | J58: 20878 | K58: 534710.2356 | L58: 587895.2197
B59: October | C59: 762395.1 | D59: 5903.638324 | E59: 10440.16955 | F59: 84 | G59: 1 | H59: 629.4872949 | I59: 13604 | J59: 28116 | K59: 502657.2164 | L59: 609806.0613
B60: November | C60: 787720.2657 | D60: 7731.683018 | E60: 9914.923883 | F60: 59 | G60: 1 | H60: 731.5431369 | I60: 14748 | J60: 28564 | K60: 458717.612 | L60: 565103.2593
B61: December | C61: 997804.7728 | D61: 11830.21082 | E61: 12995.27088 | F61: 63 | G61: 2 | H61: 1361.030432 | I61: 15642 | J61: 32311 | K61: 518063.252 | L61: 597603.4981
B64: LPL-S > 500 kW PLS | C64: % of | D64: % of
C65: kWh | D65: Gen Obl
C66: 0.3566306898 | D66: 0.3453845661
A70: Table #4 | B70: Forwards Prices - Energy Only @ bulk system | E70: Table #5 | F70: Zone to Western Hub Basis Differential
B71: in $/MWh, not including PJM losses | F71: Off/On Pk
C72: On-Peak | F72: LMP ratio
B73: January | C73: 42.05 | E73: Summer | F73: 0.6684
B74: February | C74: 39.75 | E74: Winter | F74: 0.7876
B75: March | C75: 32.1
B76: April | C76: 29.05
B77: May | C77: 29.05
B78: June | C78: 28.25 | F78: Basis
B79: July | C79: 32.9 | F79: On-Peak | G79: Off-Peak
B80: August | C80: 30.75 | E80: Summer | F80: 0.94 | G80: 0.9
B81: September | C81: 30.45 | E81: Winter | F81: 0.97 | G81: 0.98
B82: October | C82: 28.35
B83: November | C83: 28.8
B84: December | C84: 31.55
A88: Table #6 | B88: Loss Type | C88: Percentage | D88: Source
B89: Delivery Losses | C89: 0.058327 | D89: Tariff (Result of 2018 Rate Case Loss Study)
B90: EHV Losses | C90: 0.00456 | D90: PJM - No update for 2020
B91: Marginal Loss Deration Factor | C91: 0.010525 | D91: NERA
A96: Table #10 | B96: Generation & Transmission Obligations and Costs and Other Adjustments
B97: Obligations - Peak Load shares eff 1/1/19, scaling factors eff 6/1/18, Transmission Loads eff 1/1/19; costs are market estimates
B98: in MW
C100: RS | D100: RHS | E100: RLM | F100: WH | G100: WHS | H100: HS | I100: PSAL | J100: BPL | K100: GLP | L100: LPL-S
B101: Generation Peak Load Share | C101: 3942.672087 | D101: 18.2786511 | E101: 63.41464767 | F101: 0 | G101: 0 | H101: 3.375014398 | I101: 0 | J101: 0 | K101: 1677.444323 | L101: 1328.143827
B102: Tranmsission Obligation | C102: 4409.348848 | D102: 19.95785361 | E102: 69.35223935 | F102: 0 | G102: 0 | H102: 3.29783843 | I102: 0 | J102: 0 | K102: 1572.975796 | L102: 1261.747991
B104: Final Zonal RPM Scaling Factor | C104: 1.105054399
B105: ="PJM June 1, "&(Input!D2-1)&" (through May 31, "&(Input!D2)&") Forecast Pool Requirement" -> PJM June 1, -1 (through May 31, ) Forecast Pool Requirement | C105: 1.0895
B107: NITS Rate | D107: Tranches | E107: NITS Rate
C108: 2018 | D108: 29 | E108: 101197
C109: 2019 | D109: 28 | E109: 104709.15
C110: 2020 | D110: 28 | E110: 138497.0843
E112: Base Capacity
B113: Generation Capacity cost | C113: summer = | E113: 174.13 | F113: $/MW/day
C114: winter = | E114: 174.13 | F114: $/MW/day
C115: Capacity Proxy Price True Up | E115: 0 | F115: $/MW/day
C118: RS | D118: RHS
B119: Required summer inversion = | C119: 0.8652 | D119: 1.1569 | E119: ¢/kWh | F119: (same as 2003/2004 BGS blocking inversion)(generally not updated)
A122: Table #11 | B122: Ancillary Services & Renewable Power Cost
B123: Ancillary Services | D123: 2 | E123: per MWh @ bulk system
B124: Renewable Power Cost | D124: 16.72 | E124: per MWh @ bulk system
A129: Bill Impacts | B129: BGS - CIEP BRA Clearing Price ($ per MW/Day)
B130: Annual Obligation Clearing Price | D130: 281.78 | E130: per MWh
A135: auction results and rates | B135: Specific BGS-FP Auction >> | C135: remaining portion of 36 month bid - 2018 auction | D135: remaining portion of 36 month bid - 2019 auction | E135: 36 month bid - 2020 auction
B136: Winning Bid - in $/MWh | C136: 91.77 | D136: 98.04 | E136: 98.04
B137: # of Tranches for Bid | C137: 29 | D137: 28 | E137: 28
B138: Use Estimated amount in cell e136 | E138: Yes
B139: Payment Factors
B140: Summer | C140: 1 | D140: 1 | E140: 1
B141: Winter | C141: 1 | D141: 1 | E141: 1

Sheet bid_factors
B2: =Input!B7 -> Development of BGS-RSCP Cost and Bid Factors for 2020/2021 BGS Filing
B3: Adjusted to Billing Time Periods
E4: =+Input!E9 -> Based on average of year 2016,2017 & 2018 Load Profile Information
A5: Table #1 | B5: % Usage During PJM On-Peak Period | E5: On-Peak periods defined as the 16 hr PJM Trading period, adj for NERC holidays | O5: % usage during Off-Peak period
C6: Profile Meter Data | D6: Profile Meter Data | E6: Profile Meter Data | F6: Profile Meter Data | G6: Profile Meter Data | H6: Profile Meter Data | I6: --- Other Analysis --- | K6: Profile Meter Data | L6: Profile Meter Data | O6: Profile Meter Data | P6: Profile Meter Data | Q6: Profile Meter Data | R6: Profile Meter Data | S6: Profile Meter Data | T6: Profile Meter Data | U6: -- Other Analysis -- | W6: Profile Meter Data | X6: Profile Meter Data
B7: (data rounded to nearest .01%) | C7: RS | D7: RHS | E7: RLM | F7: WH | G7: WHS | H7: HS | I7: PSAL | J7: BPL | K7: GLP | L7: LPL-S | O7: =+C7 -> RS | P7: =+D7 -> RHS | Q7: RLM | R7: WH | S7: WHS | T7: HS | U7: PSAL | V7: BPL | W7: GLP | X7: LPL-S
B9: January | C9: =Input!C14 -> 0.4687 | D9: =Input!D14 -> 0.467 | E9: =Input!E14 -> 0.4787 | F9: =Input!F14 -> 0.4687 | G9: =Input!G14 -> 0.4687 | H9: =Input!H14 -> 0.458 | I9: =Input!I14 -> 0.3 | J9: =Input!J14 -> 0.3 | K9: =Input!K14 -> 0.546 | L9: =Input!L14 -> 0.5243 | O9: =1-C9 -> 0.5313 | P9: 0.533 | Q9: 0.5213 | R9: 0.5313 | S9: 0.5313 | T9: 0.542 | U9: 0.7 | V9: 0.7 | W9: 0.454 | X9: 0.4757
B10: February | C10: =Input!C15 -> 0.4987 | D10: =Input!D15 -> 0.4907 | E10: =Input!E15 -> 0.5067 | F10: =Input!F15 -> 0.4987 | G10: =Input!G15 -> 0.4987 | H10: =Input!H15 -> 0.478 | I10: =Input!I15 -> 0.2973 | J10: =Input!J15 -> 0.2973 | K10: =Input!K15 -> 0.5697 | L10: =Input!L15 -> 0.5503 | O10: =1-C10 -> 0.5013 | P10: =1-D10 -> 0.5093 | Q10: =1-E10 -> 0.4933 | R10: =1-F10 -> 0.5013 | S10: =1-G10 -> 0.5013 | T10: =1-H10 -> 0.522 | U10: =1-I10 -> 0.7027 | V10: =1-J10 -> 0.7027 | W10: =1-K10 -> 0.4303 | X10: =1-L10 -> 0.4497
B11: March | C11: =Input!C16 -> 0.5043 | D11: =Input!D16 -> 0.4957 | E11: =Input!E16 -> 0.514 | F11: =Input!F16 -> 0.5043 | G11: =Input!G16 -> 0.5043 | H11: =Input!H16 -> 0.4863 | I11: =Input!I16 -> 0.264 | J11: =Input!J16 -> 0.264 | K11: =Input!K16 -> 0.58 | L11: =Input!L16 -> 0.56 | O11: 0.4957 | P11: 0.5043 | Q11: 0.486 | R11: 0.4957 | S11: 0.4957 | T11: 0.5137 | U11: 0.736 | V11: 0.736 | W11: 0.42 | X11: 0.44
B12: April | C12: =Input!C17 -> 0.4763 | D12: =Input!D17 -> 0.4813 | E12: =Input!E17 -> 0.4903 | F12: =Input!F17 -> 0.4763 | G12: =Input!G17 -> 0.4763 | H12: =Input!H17 -> 0.4927 | I12: =Input!I17 -> 0.219 | J12: =Input!J17 -> 0.219 | K12: =Input!K17 -> 0.566 | L12: =Input!L17 -> 0.5433 | O12: 0.5237 | P12: 0.5187 | Q12: 0.5097 | R12: 0.5237 | S12: 0.5237 | T12: 0.5073 | U12: 0.781 | V12: 0.781 | W12: 0.434 | X12: 0.4567
B13: May | C13: =Input!C18 -> 0.4977 | D13: =Input!D18 -> 0.5087 | E13: =Input!E18 -> 0.5173 | F13: =Input!F18 -> 0.4977 | G13: =Input!G18 -> 0.4977 | H13: =Input!H18 -> 0.5857 | I13: =Input!I18 -> 0.212 | J13: =Input!J18 -> 0.212 | K13: =Input!K18 -> 0.589 | L13: =Input!L18 -> 0.5643 | O13: 0.5023 | P13: 0.4913 | Q13: 0.4827 | R13: 0.5023 | S13: 0.5023 | T13: 0.4143 | U13: 0.788 | V13: 0.788 | W13: 0.411 | X13: 0.4357
B14: June | C14: =Input!C19 -> 0.523 | D14: =Input!D19 -> 0.53 | E14: =Input!E19 -> 0.5437 | F14: =Input!F19 -> 0.523 | G14: =Input!G19 -> 0.523 | H14: =Input!H19 -> 0.6283 | I14: =Input!I19 -> 0.2037 | J14: =Input!J19 -> 0.2037 | K14: =Input!K19 -> 0.605 | L14: =Input!L19 -> 0.577 | O14: 0.477 | P14: 0.47 | Q14: 0.4563 | R14: 0.477 | S14: 0.477 | T14: 0.3717 | U14: 0.7963 | V14: 0.7963 | W14: 0.395 | X14: 0.423
B15: July | C15: =Input!C20 -> 0.4883 | D15: =Input!D20 -> 0.4973 | E15: =Input!E20 -> 0.5073 | F15: =Input!F20 -> 0.4883 | G15: =Input!G20 -> 0.4883 | H15: =Input!H20 -> 0.5833 | I15: =Input!I20 -> 0.183 | J15: =Input!J20 -> 0.183 | K15: =Input!K20 -> 0.562 | L15: =Input!L20 -> 0.5287 | O15: 0.5117 | P15: 0.5027 | Q15: 0.4927 | R15: 0.5117 | S15: 0.5117 | T15: 0.4167 | U15: 0.817 | V15: 0.817 | W15: 0.438 | X15: 0.4713
B16: August | C16: =Input!C21 -> 0.5443 | D16: =Input!D21 -> 0.5537 | E16: =Input!E21 -> 0.5637 | F16: =Input!F21 -> 0.5443 | G16: =Input!G21 -> 0.5443 | H16: =Input!H21 -> 0.6393 | I16: =Input!I21 -> 0.2253 | J16: =Input!J21 -> 0.2253 | K16: =Input!K21 -> 0.618 | L16: =Input!L21 -> 0.58 | O16: 0.4557 | P16: 0.4463 | Q16: 0.4363 | R16: 0.4557 | S16: 0.4557 | T16: 0.3607 | U16: 0.7747 | V16: 0.7747 | W16: 0.382 | X16: 0.42
B17: September | C17: =Input!C22 -> 0.487 | D17: =Input!D22 -> 0.4963 | E17: =Input!E22 -> 0.5047 | F17: =Input!F22 -> 0.487 | G17: =Input!G22 -> 0.487 | H17: =Input!H22 -> 0.595 | I17: =Input!I22 -> 0.2267 | J17: =Input!J22 -> 0.2267 | K17: =Input!K22 -> 0.5707 | L17: =Input!L22 -> 0.5417 | O17: 0.513 | P17: 0.5037 | Q17: 0.4953 | R17: 0.513 | S17: 0.513 | T17: 0.405 | U17: 0.7733 | V17: 0.7733 | W17: 0.4293 | X17: 0.4583
B18: October | C18: =Input!C23 -> 0.4993 | D18: =Input!D23 -> 0.5177 | E18: =Input!E23 -> 0.5183 | F18: =Input!F23 -> 0.4993 | G18: =Input!G23 -> 0.4993 | H18: =Input!H23 -> 0.5717 | I18: =Input!I23 -> 0.2693 | J18: =Input!J23 -> 0.2693 | K18: =Input!K23 -> 0.588 | L18: =Input!L23 -> 0.5647 | O18: 0.5007 | P18: 0.4823 | Q18: 0.4817 | R18: 0.5007 | S18: 0.5007 | T18: 0.4283 | U18: 0.7307 | V18: 0.7307 | W18: 0.412 | X18: 0.4353
B19: November | C19: =Input!C24 -> 0.482 | D19: =Input!D24 -> 0.4827 | E19: =Input!E24 -> 0.5017 | F19: =Input!F24 -> 0.482 | G19: =Input!G24 -> 0.482 | H19: =Input!H24 -> 0.489 | I19: =Input!I24 -> 0.31 | J19: =Input!J24 -> 0.31 | K19: =Input!K24 -> 0.5647 | L19: =Input!L24 -> 0.542 | O19: 0.518 | P19: 0.5173 | Q19: 0.4983 | R19: 0.518 | S19: 0.518 | T19: 0.511 | U19: 0.69 | V19: 0.69 | W19: 0.4353 | X19: 0.458
B20: December | C20: =Input!C25 -> 0.4547 | D20: =Input!D25 -> 0.4523 | E20: =Input!E25 -> 0.4683 | F20: =Input!F25 -> 0.4547 | G20: =Input!G25 -> 0.4547 | H20: =Input!H25 -> 0.4543 | I20: =Input!I25 -> 0.2987 | J20: =Input!J25 -> 0.2987 | K20: =Input!K25 -> 0.5263 | L20: =Input!L25 -> 0.5033 | O20: 0.5453 | P20: 0.5477 | Q20: 0.5317 | R20: 0.5453 | S20: 0.5453 | T20: 0.5457 | U20: 0.7013 | V20: 0.7013 | W20: 0.4737 | X20: 0.4967
E22: =+Input!E9 -> Based on average of year 2016,2017 & 2018 Load Profile Information
A23: Table #2 | B23: % Usage During PSE&G On-Peak Billing Period | E23: =Input!E28 -> On-Peak periods as defined in specified rate schedule (average of %s for 2016, 2017 & 2018)
C24: N/A | D24: N/A | E24: Profile Meter Data | F24: N/A | G24: N/A | H24: N/A | I24: N/A | J24: N/A | K24: N/A | L24: Profile Meter Data | O24: N/A | P24: N/A | Q24: Actual Billed Sales | R24: N/A | S24: N/A | T24: N/A | U24: N/A | V24: N/A | W24: N/A | X24: Actual Billed Sales
B25: (data rounded to nearest .01%) | C25: =+C7 -> RS | D25: =+D7 -> RHS | E25: RLM | F25: WH | G25: WHS | H25: HS | I25: PSAL | J25: BPL | K25: GLP | L25: LPL-S | O25: =+C7 -> RS | P25: =+D7 -> RHS | Q25: RLM | R25: WH | S25: WHS | T25: HS | U25: PSAL | V25: BPL | W25: GLP | X25: LPL-S
B27: January | C27: 0 | D27: 0 | E27: =Input!C32 -> 0.427 | F27: 0 | G27: 0 | H27: 0 | I27: 0 | J27: 0 | K27: 0 | L27: =Input!D32 -> 0.4783 | Q27: =1-E27 -> 0.573 | X27: =1-L27 -> 0.5217
B28: February | C28: 0 | D28: 0 | E28: =Input!C33 -> 0.4232 | F28: 0 | G28: 0 | H28: 0 | I28: 0 | J28: 0 | K28: 0 | L28: =Input!D33 -> 0.4826 | Q28: 0.5768 | X28: 0.5174
B29: March | C29: 0 | D29: 0 | E29: =Input!C34 -> 0.4185 | F29: 0 | G29: 0 | H29: 0 | I29: 0 | J29: 0 | K29: 0 | L29: =Input!D34 -> 0.4811 | Q29: 0.5815 | X29: 0.5189
B30: April | C30: 0 | D30: 0 | E30: =Input!C35 -> 0.4193 | F30: 0 | G30: 0 | H30: 0 | I30: 0 | J30: 0 | K30: 0 | L30: =Input!D35 -> 0.4894 | Q30: 0.5807 | X30: 0.5106
B31: May | C31: 0 | D31: 0 | E31: =Input!C36 -> 0.4437 | F31: 0 | G31: 0 | H31: 0 | I31: 0 | J31: 0 | K31: 0 | L31: =Input!D36 -> 0.5014 | Q31: 0.5563 | X31: 0.4986
B32: June | C32: 0 | D32: 0 | E32: =Input!C37 -> 0.46 | F32: 0 | G32: 0 | H32: 0 | I32: 0 | J32: 0 | K32: 0 | L32: =Input!D37 -> 0.5073 | Q32: 0.54 | X32: 0.4927
B33: July | C33: 0 | D33: 0 | E33: =Input!C38 -> 0.4865 | F33: 0 | G33: 0 | H33: 0 | I33: 0 | J33: 0 | K33: 0 | L33: =Input!D38 -> 0.5064 | Q33: 0.5135 | X33: 0.4936
B34: August | C34: 0 | D34: 0 | E34: =Input!C39 -> 0.4862 | F34: 0 | G34: 0 | H34: 0 | I34: 0 | J34: 0 | K34: 0 | L34: =Input!D39 -> 0.4994 | Q34: 0.5138 | X34: 0.5006
B35: September | C35: 0 | D35: 0 | E35: =Input!C40 -> 0.4875 | F35: 0 | G35: 0 | H35: 0 | I35: 0 | J35: 0 | K35: 0 | L35: =Input!D40 -> 0.5078 | Q35: 0.5125 | X35: 0.4922
B36: October | C36: 0 | D36: 0 | E36: =Input!C41 -> 0.4618 | F36: 0 | G36: 0 | H36: 0 | I36: 0 | J36: 0 | K36: 0 | L36: =Input!D41 -> 0.5062 | Q36: 0.5382 | X36: 0.4938
B37: November | C37: 0 | D37: 0 | E37: =Input!C42 -> 0.4361 | F37: 0 | G37: 0 | H37: 0 | I37: 0 | J37: 0 | K37: 0 | L37: =Input!D42 -> 0.4968 | Q37: 0.5639 | X37: 0.5032
B38: December | C38: 0 | D38: 0 | E38: =Input!C43 -> 0.4285 | F38: 0 | G38: 0 | H38: 0 | I38: 0 | J38: 0 | K38: 0 | L38: =Input!D43 -> 0.4853 | Q38: 0.5715 | X38: 0.5147
A41: Table #3 | B41: Class Usage @ customer | O41: Usage by season - PSE&G periods
B42: =Input!B47 -> Calendar month sales forecasted for 2020, less % for LPL-Sec > 500 kW Peak Load Share | L42: < 500 kW | AB42: Total | AD42: LPL-S > 500 kW PLS
B43: in MWh | C43: =+C7 -> RS | D43: =+D7 -> RHS | E43: RLM | F43: WH | G43: WHS | H43: HS | I43: PSAL | J43: BPL | K43: GLP | L43: LPL-S | O43: =+C7 -> RS | P43: =+D7 -> RHS | Q43: RLM | R43: WH | S43: WHS | T43: HS | U43: PSAL | V43: BPL | W43: GLP | X43: LPL-S | Z43: % | AB43: LPL-S | AD43: % of | AE43: % of | AF43: % of
AD44: kWh | AE44: Gen Obl | AF44: Trans Obl
B45: January | C45: =Input!C50 -> 1081757.889 | D45: =Input!D50 -> 16281.35153 | E45: =Input!E50 -> 14609.30705 | F45: =Input!F50 -> 77 | G45: =Input!G50 -> 2 | H45: =Input!H50 -> 1987.087278 | I45: =Input!I50 -> 15657 | J45: =Input!J50 -> 32646 | K45: =Input!K50 -> 551271.5797 | L45: =AB45*$M$45 -> 409109.2668 | M45: =(1-AD45) -> 0.6433693102 | N45: winter MWh = | O45: =SUM(C45:C49,C54:C56) -> 6940335.714 | P45: =SUM(D45:D49,D54:D56) -> 77951.34229 | Q45: 95719.63994 | R45: 576 | S45: 12 | T45: 9052.095909 | U45: 106887 | V45: 222506 | W45: 4035914.422 | X45: 3059039.117 | Y45: =SUM(O45:X45) -> 14547993.33 | Z45: =+Y45/(Y45+Y49) -> 0.6069067051 | AB45: =Input!L50 -> 635885.5797 | AD45: =Input!C66 -> 0.3566306898 | AE45: =Input!D66 -> 0.3453845661 | AF45: =AE45 -> 0.3453845661
B46: February | C46: =Input!C51 -> 926769.902 | D46: =Input!D51 -> 13814.01677 | E46: =Input!E51 -> 12566.685 | F46: =Input!F51 -> 71 | G46: =Input!G51 -> 2 | H46: =Input!H51 -> 1702.360055 | I46: =Input!I51 -> 13467 | J46: =Input!J51 -> 27223 | K46: =Input!K51 -> 520226.4705 | L46: =AB46*$M$45 -> 382549.1737 | N46: on-peak | Q46: =SUMPRODUCT(E27:E31,E45:E49)+SUMPRODUCT(E36:E38,E54:E56) -> 41335.34247 | X46: =SUMPRODUCT(L27:L31,L45:L49)+SUMPRODUCT(L36:L38,L54:L56) -> 1499087.796 | AB46: =Input!L51 -> 594602.7696
B47: March | C47: =Input!C52 -> 857391.9141 | D47: =Input!D52 -> 10809.64013 | E47: =Input!E52 -> 11989.4619 | F47: =Input!F52 -> 78 | G47: =Input!G52 -> 1 | H47: =Input!H52 -> 1334.444456 | I47: =Input!I52 -> 12961 | J47: =Input!J52 -> 27598 | K47: =Input!K52 -> 530696.7117 | L47: 393439.4413 | N47: off-peak | O47: =+O45-O46 -> 6940335.714 | P47: =+P45-P46 -> 77951.34229 | Q47: =+Q45-Q46 -> 54384.29747 | R47: =+R45-R46 -> 576 | X47: =+X45-X46 -> 1559951.321 | AB47: =Input!L52 -> 611529.7
B48: April | C48: =Input!C53 -> 713094.8562 | D48: =Input!D53 -> 6831.516734 | E48: =Input!E53 -> 10156.57337 | F48: =Input!F53 -> 66 | G48: =Input!G53 -> 2 | H48: =Input!H53 -> 901.3503364 | I48: =Input!I53 -> 10692 | J48: =Input!J53 -> 23860 | K48: =Input!K53 -> 464119.4824 | L48: 342157.3491 | AB48: =Input!L53 -> 531821.0609
B49: May | C49: =Input!C54 -> 813401.0139 | D49: =Input!D54 -> 4749.284958 | E49: =Input!E54 -> 13047.24831 | F49: =Input!F54 -> 78 | G49: =Input!G54 -> 1 | H49: =Input!H54 -> 404.7929199 | I49: =Input!I54 -> 10116 | J49: =Input!J54 -> 22188 | K49: =Input!K54 -> 490162.0973 | L49: 391403.5371 | N49: summer MWh = | O49: =SUM(C50:C53) -> 5215736.309 | P49: =+SUM(D50:D53) -> 22442.9993 | Q49: 84424.12241 | R49: 190 | S49: 4 | T49: 2358.433325 | U49: 41017 | V49: 76450 | W49: 2304203.23 | X49: 1675904.921 | Y49: =SUM(O49:X49) -> 9422731.014 | Z49: =1-Z45 -> 0.3930932949 | AB49: =Input!L54 -> 608365.2591
B50: June | C50: =Input!C55 -> 1196743.317 | D50: =Input!D55 -> 5677.163368 | E50: =Input!E55 -> 19706.74331 | F50: =Input!F55 -> 56 | G50: =Input!G55 -> 1 | H50: =Input!H55 -> 603.7589313 | I50: =Input!I55 -> 8906 | J50: =Input!J55 -> 19116 | K50: =Input!K55 -> 539921.0642 | L50: 408305.6091 | N50: on-peak | Q50: =+SUMPRODUCT(E32:E35,E50:E53) -> 40559.1874 | X50: =+SUMPRODUCT(L32:L35,L50:L53) -> 846378.9224 | AB50: =Input!L55 -> 634636.4408
B51: July | C51: =Input!C56 -> 1558280.628 | D51: =Input!D56 -> 6018.309189 | E51: =Input!E56 -> 25395.99284 | F51: =Input!F56 -> 43 | G51: =Input!G56 -> 1 | H51: =Input!H56 -> 622.6263979 | I51: =Input!I56 -> 9387 | J51: =Input!J56 -> 16613 | K51: =Input!K56 -> 611191.1684 | L51: 432746.7348 | N51: off-peak | Q51: =+Q49-Q50 -> 43864.93501 | X51: =+X49-X50 -> 829525.9985 | AB51: =Input!L56 -> 672625.7034
B52: August | C52: =Input!C57 -> 1459451.216 | D52: =Input!D57 -> 6014.486827 | E52: =Input!E57 -> 23262.18231 | F52: =Input!F57 -> 49 | G52: =Input!G57 -> 1 | H52: =Input!H57 -> 673.2255129 | I52: =Input!I57 -> 10539 | J52: =Input!J57 -> 19843 | K52: =Input!K57 -> 618380.7615 | L52: 456618.835 | AB52: =Input!L57 -> 709730.5198
B53: September | C53: =Input!C58 -> 1001261.147 | D53: =Input!D58 -> 4733.039919 | E53: =Input!E58 -> 16059.20395 | F53: =Input!F58 -> 42 | G53: =Input!G58 -> 1 | H53: =Input!H58 -> 458.8224833 | I53: =Input!I58 -> 12185 | J53: =Input!J58 -> 20878 | K53: =Input!K58 -> 534710.2356 | L53: 378233.742 | N53: Block 1 | O53: =+O49*C163 -> 3369365.655 | P53: =+P49*D163 -> 14834.82254 | AB53: =Input!L58 -> 587895.2197
B54: October | C54: =Input!C59 -> 762395.1 | D54: =Input!D59 -> 5903.638324 | E54: =Input!E59 -> 10440.16955 | F54: =Input!F59 -> 84 | G54: =Input!G59 -> 1 | H54: =Input!H59 -> 629.4872949 | I54: =Input!I59 -> 13604 | J54: =Input!J59 -> 28116 | K54: =Input!K59 -> 502657.2164 | L54: 392330.505 | N54: Block 2 | O54: =+O49-O53 -> 1846370.653 | P54: =+P49-P53 -> 7608.176763 | AB54: =Input!L59 -> 609806.0613
B55: November | C55: =Input!C60 -> 787720.2657 | D55: =Input!D60 -> 7731.683018 | E55: =Input!E60 -> 9914.923883 | F55: =Input!F60 -> 59 | G55: =Input!G60 -> 1 | H55: =Input!H60 -> 731.5431369 | I55: =Input!I60 -> 14748 | J55: =Input!J60 -> 28564 | K55: =Input!K60 -> 458717.612 | L55: 363570.0941 | AB55: =Input!L60 -> 565103.2593
B56: December | C56: =Input!C61 -> 997804.7728 | D56: =Input!D61 -> 11830.21082 | E56: =Input!E61 -> 12995.27088 | F56: =Input!F61 -> 63 | G56: =Input!G61 -> 2 | H56: =Input!H61 -> 1361.030432 | I56: =Input!I61 -> 15642 | J56: =Input!J61 -> 32311 | K56: =Input!K61 -> 518063.252 | L56: 384479.7503 | AB56: =Input!L61 -> 597603.4981
B57: Total | C57: =SUM(C45:C56) -> 12156072.02 | D57: =SUM(D45:D56) -> 100394.3416 | E57: =SUM(E45:E56) -> 180143.7624 | F57: 766 | G57: 16 | H57: =SUM(H45:H56) -> 11410.52923 | I57: =SUM(I45:I56) -> 147904 | J57: =SUM(J45:J56) -> 298956 | K57: 6340117.652 | L57: =SUM(L45:L56) -> 4734944.038 | O57: Usage by season/period - PJM periods | AB57: =SUM(AB45:AB56) -> 7359605.072
O58: in MWhs
Y59: Total | Z59: %
A60: Table #4 | B60: Forwards Prices - Energy Only @ bulk system | G60: Table #5 | H60: Zone to Western Hub Basis Differential | N60: Winter
B61: in $/MWh, not including PJM losses | D61: Off/On Pk | E61: Resulting | N61: on-peak | O61: =SUMPRODUCT(C9:C13,C45:C49)+SUMPRODUCT(C18:C20,C54:C56) -> 3360106.452 | P61: =SUMPRODUCT(D9:D13,D45:D49)+SUMPRODUCT(D18:D20,D54:D56) -> 37583.43938 | Q61: 47723.85001 | R61: 280.1147 | S61: 5.7801 | T61: 4389.855548 | U61: 29516.3857 | V61: 61180.0404 | W61: 2283825.466 | X61: 1664214.675 | Y61: =SUM(O61:X61) -> 7488826.059 | Z61: =+Y61/(Y61+Y62) -> 0.5147669433
C62: On-Peak | D62: LMP ratio | E62: Off-Peak | H62: On-Peak | I62: Off-Peak | N62: off-peak | O62: =+O45-O61 -> 3580229.263 | P62: =+P45-P61 -> 40367.90291 | Q62: 47995.78994 | R62: 295.8853 | S62: 6.2199 | T62: 4662.240361 | U62: 77370.6143 | V62: 161325.9596 | W62: 1752088.956 | X62: 1394824.442 | Y62: =SUM(O62:X62) -> 7059167.273 | Z62: =1-Z61 -> 0.4852330567
B63: January | C63: =Input!C73 -> 42.05 | D63: =Input!F74 -> 0.7876 | E63: =ROUND(+C63*D63,3) -> 33.119 | H63: =Input!F81 -> 0.97 | I63: =Input!G81 -> 0.98 | J63: NYMEX Forwards (January 10, 2020) from NERA
B64: February | C64: =Input!C74 -> 39.75 | D64: =+$D$63 -> 0.7876 | E64: =ROUND(+C64*D64,3) -> 31.307 | H64: =+$H$63 -> 0.97 | I64: =+$I$63 -> 0.98 | N64: Summer
B65: March | C65: =Input!C75 -> 32.1 | D65: =+$D$63 -> 0.7876 | E65: =ROUND(+C65*D65,3) -> 25.282 | H65: =+$H$63 -> 0.97 | I65: =+$I$63 -> 0.98 | J65: Congestion Factors & On/Off Peak Ratios | N65: on-peak | O65: =SUMPRODUCT(C14:C17,C50:C53) -> 2668798.661 | P65: =SUMPRODUCT(D14:D17,D50:D53) -> 11681.03081 | Q65: 44815.91591 | R65: 97.4096 | S65: 2.0426 | T65: 1445.912162 | U65: 8668.7494 | V65: 16137.7787 | W65: 1357460.123 | X65: 934113.6775 | Y65: 5043221.3 | Z65: =+Y65/(Y65+Y66) -> 0.5352186423
B66: April | C66: =Input!C76 -> 29.05 | D66: =+$D$63 -> 0.7876 | E66: 22.88 | H66: =+$H$63 -> 0.97 | I66: =+$I$63 -> 0.98 | J66: Summer Averages for Aug 2016-Jul 2019 | N66: off-peak | O66: =+O49-O65 -> 2546937.647 | P66: =+P49-P65 -> 10761.96849 | Q66: 39608.2065 | R66: 92.5904 | S66: 1.9574 | T66: 912.521163 | U66: 32348.2506 | V66: 60312.2213 | W66: 946743.1071 | X66: 741791.2434 | Y66: 4379509.714 | Z66: =1-Z65 -> 0.4647813577
B67: May | C67: =Input!C77 -> 29.05 | D67: =+$D$63 -> 0.7876 | E67: 22.88 | H67: =+$H$63 -> 0.97 | I67: =+$I$63 -> 0.98 | J67: Winter Averages for Oct 2016-May 2019
B68: June | C68: =Input!C78 -> 28.25 | D68: =Input!F73 -> 0.6684 | E68: 18.882 | H68: =Input!F80 -> 0.94 | I68: =Input!G80 -> 0.9 | N68: Total on-peak | O68: =+O61+O65 -> 6028905.113 | P68: =+P61+P65 -> 49264.47019 | Q68: 92539.76592 | R68: 377.5243 | S68: 7.8227 | T68: 5835.767711 | U68: 38185.1351 | V68: 77317.8191 | W68: 3641285.589 | X68: 2598328.353 | Y68: 12532047.36 | Z68: =+Y68/(Y68+Y69) -> 0.5228063691
B69: July | C69: =Input!C79 -> 32.9 | D69: =+$D$68 -> 0.6684 | E69: 21.99 | H69: =+$H$68 -> 0.94 | I69: =+$I$68 -> 0.9 | N69: Total off-peak | O69: =+O62+O66 -> 6127166.91 | P69: =+P62+P66 -> 51129.8714 | Q69: 87603.99644 | R69: 388.4757 | S69: 8.1773 | T69: 5574.761524 | U69: 109718.8649 | V69: 221638.1809 | W69: 2698832.063 | X69: 2136615.686 | Y69: 11438676.99 | Z69: =1-Z68 -> 0.4771936309
B70: August | C70: =Input!C80 -> 30.75 | D70: =+$D$68 -> 0.6684 | E70: 20.553 | H70: =+$H$68 -> 0.94 | I70: =+$I$68 -> 0.9
B71: September | C71: =Input!C81 -> 30.45 | D71: =+$D$68 -> 0.6684 | E71: 20.353 | H71: =+$H$68 -> 0.94 | I71: =+$I$68 -> 0.9
B72: October | C72: =Input!C82 -> 28.35 | D72: =+$D$63 -> 0.7876 | E72: 22.328 | H72: =+$H$63 -> 0.97 | I72: =+$I$63 -> 0.98
B73: November | C73: =Input!C83 -> 28.8 | D73: =+$D$63 -> 0.7876 | E73: 22.683 | H73: =+$H$63 -> 0.97 | I73: =+$I$63 -> 0.98
B74: December | C74: =Input!C84 -> 31.55 | D74: =+$D$63 -> 0.7876 | E74: 24.849 | H74: =+$H$63 -> 0.97 | I74: =+$I$63 -> 0.98
A77: Table #6 | B77: Losses | C77: =+C7 -> RS | D77: =+D7 -> RHS | E77: RLM | F77: WH | G77: WHS | H77: HS | I77: PSAL | J77: BPL | K77: GLP | L77: LPL-S | P77: Loss Type | Q77: Percentage | R77: Source
B78: from meter to bulk system (includes Delivery & PJM EHV losses) | P78: Delivery Losses | Q78: =Input!C89 -> 0.058327 | R78: Tariff (Result of 2018 Loss Study)
B79: Loss Factors = | C79: =1-((1-$Q$78)*(1-$Q$79)) -> 0.06262102888 | D79: =+$C79 -> 0.06262102888 | E79: =+$C79 -> 0.06262102888 | F79: 0.06262102888 | G79: 0.06262102888 | H79: 0.06262102888 | I79: 0.06262102888 | J79: 0.06262102888 | K79: 0.06262102888 | L79: 0.06262102888 | P79: EHV Losses | Q79: =Input!C90 -> 0.00456 | R79: PJM
B80: Expansion Factor = | C80: =ROUND(1/(1-C79),6) -> 1.066804 | D80: =ROUND(1/(1-D79),6) -> 1.066804 | E80: 1.066804 | F80: 1.066804 | G80: 1.066804 | H80: 1.066804 | I80: 1.066804 | J80: 1.066804 | K80: 1.066804 | L80: 1.066804 | P80: Marginal Loss Deration Factor | Q80: =+Input!C91 -> 0.010525 | R80: NERA
B81: 1 / Expansion Factor = | C81: =1/C80 -> 0.9373793124 | D81: =1/D80 -> 0.9373793124 | E81: 0.9373793124 | F81: 0.9373793124 | G81: 0.9373793124 | H81: 0.9373793124 | I81: 0.9373793124 | J81: 0.9373793124 | K81: 0.9373793124 | L81: 0.9373793124 | P81: Marginal Loss Factor | Q81: =ROUND(1-((1-Q80)/(1-Q79)),7) -> 0.0059923
B83: from meter to transmission node (includes Delivery less mean hourly PJM marginal losses)
B84: Loss Factors = | C84: =1-((1-$Q$78)/((1-$Q$80)/(1-$Q$79))) -> 0.05265017194 | D84: =+$C84 -> 0.05265017194 | E84: =+$C84 -> 0.05265017194 | F84: 0.05265017194 | G84: 0.05265017194 | H84: 0.05265017194 | I84: 0.05265017194 | J84: 0.05265017194 | K84: 0.05265017194 | L84: 0.05265017194
B85: Expansion Factor = | C85: =ROUND(1/(1-C84),6) -> 1.055576 | D85: =+$C$85 -> 1.055576 | E85: =+$C$85 -> 1.055576 | F85: 1.055576 | G85: 1.055576 | H85: 1.055576 | I85: 1.055576 | J85: 1.055576 | K85: 1.055576 | L85: 1.055576
B86: 1 / Expansion Factor = | C86: =1/C85 -> 0.9473500724 | D86: =1/D85 -> 0.9473500724 | E86: 0.9473500724 | F86: 0.9473500724 | G86: 0.9473500724 | H86: 0.9473500724 | I86: 0.9473500724 | J86: 0.9473500724 | K86: 0.9473500724 | L86: 0.9473500724
A89: Table #7 | B89: Summary of Average BGS Energy Only Unit Costs @ customer - PJM Time Periods
B90: based on Forwards prices corrected for congestion & all losses - PJM time periods
B91: in $/MWh
C92: =+C7 -> RS | D92: =+D7 -> RHS | E92: RLM | F92: WH | G92: WHS | H92: HS | I92: PSAL | J92: BPL | K92: GLP | L92: LPL-S
B94: Summer - all hrs | C94: =(SUMPRODUCT(C14:C17,C50:C53,$C68:$C71,$H68:$H71)*C80+SUMPRODUCT(O14:O17,C50:C53,$E68:$E71,$I68:$I71)*C80)/SUM(C50:C53) -> 25.41638369 | D94: 25.40679234 | E94: 25.62459792 | F94: 25.15737187 | G94: 25.26226612 | H94: 26.41812173 | I94: 21.97550583 | J94: 21.90142031 | K94: 26.19301726 | L94: 25.80958249
B95: PJM on pk | C95: =(SUMPRODUCT(C14:C17,C50:C53,$C68:$C71,$H68:$H71)*C80)/SUMPRODUCT(C14:C17,C50:C53) -> 30.80776108 | D95: 30.68211263 | E95: 30.80198887 | F95: 30.48376084 | G95: 30.6377498 | H95: 30.6629862 | I95: 30.64269627 | J95: 30.54898696 | K95: 30.71062492 | L95: 30.66577034
B96: PJM off pk | C96: =(SUMPRODUCT(O14:O17,C50:C53,$E68:$E71,$I68:$I71)*C80)/SUMPRODUCT(O14:O17,C50:C53) -> 19.76704995 | D96: 19.68096449 | E96: 19.76648067 | F96: 19.55375184 | G96: 19.65280308 | H96: 19.69202986 | I96: 19.65285466 | J96: 19.58758551 | K96: 19.71557665 | L96: 19.69434248
B98: Winter - all hrs | C98: =(SUMPRODUCT(C9:C13,C45:C49,$C63:$C67,$H63:$H67)*C80+SUMPRODUCT(O9:O13,C45:C49,$E63:$E67,$I63:$I67)*C80+SUMPRODUCT(C18:C20,C54:C56,$C72:$C74,$H72:$H74)*C80+SUMPRODUCT(O18:O20,C54:C56,$E72:$E74,$I72:$I74)*C80)/SUM(C45:C49,C54:C56) -> 30.67272845 | D98: 31.81159908 | E98: 30.69739143 | F98: 30.25170563 | G98: 31.07923214 | H98: 32.08187174 | I98: 29.03987324 | J98: 29.00839578 | K98: 30.93384845 | L98: 30.69175523
B99: PJM on pk | C99: =(SUMPRODUCT(C9:C13,C45:C49,$C63:$C67,$H63:$H67)*C80+SUMPRODUCT(C18:C20,C54:C56,$C72:$C74,$H72:$H74)*C80)/(SUMPRODUCT(C9:C13,C45:C49)+SUMPRODUCT(C18:C20,C54:C56)) -> 34.25797143 | D99: 35.513154 | E99: 34.13793086 | F99: 33.76677738 | G99: 34.75146805 | H99: 35.65274559 | I99: 34.34900021 | J99: 34.33603821 | K99: 33.88188183 | L99: 33.78697655
B100: PJM off pk | C100: =(SUMPRODUCT(O9:O13,C45:C49,$E63:$E67,$I63:$I67)*C80+SUMPRODUCT(O18:O20,C54:C56,$E72:$E74,$I72:$I74)*C80)/(SUMPRODUCT(O9:O13,C45:C49)+SUMPRODUCT(O18:O20,C54:C56)) -> 27.30791655 | D100: 28.36536692 | E100: 27.27634579 | F100: 26.92398617 | G100: 27.66665464 | H100: 28.71962115 | I100: 27.01447587 | J100: 26.98798084 | K100: 27.09112478 | L100: 26.99873654
B102: Annual | C102: =(C94*SUM(C50:C53)+C98*SUM(C45:C49,C54:C56))/C57 -> 28.41741866 | D102: 30.37981447 | E102: 28.32003384 | F102: 28.98809804 | G102: 29.62499063 | H102: 30.9112357 | I102: 27.08077032 | J102: 27.19097691 | K102: 29.2108775 | L102: 28.9637396
B104: System Total | C104: =SUMPRODUCT(C102:L102,C57:L57)/SUM(C57:L57) -> 28.72034885
A107: Table #8 | B107: Summary of Average BGS Energy Only Costs @ customer - PJM Time Periods
B108: based on Forwards prices corrected for congestion & all losses
B109: in $1000
C110: =+C7 -> RS | D110: =+D7 -> RHS | E110: RLM | F110: WH | G110: WHS | H110: HS | I110: PSAL | J110: BPL | K110: GLP | L110: LPL-S
B112: Summer - all hrs | C112: =SUM(C50:C53)*C94/1000 -> 132565.1552 | D112: 570.2046227 | E112: 2163.334191 | F112: 4.779900655 | G112: 0.1010490645 | H112: 62.30537868 | I112: 901.3693225 | J112: 1674.363583 | K112: 60354.03496 | L112: 43254.4063
B113: PJM on pk | C113: =SUMPRODUCT(C50:C53,C14:C17)*C95/1000 -> 82219.71154 | D113: 358.398703 | E113: 1380.419343 | F113: 2.96941095 | G113: 0.06258066774 | H113: 44.33598469 | I113: 265.6338549 | J113: 492.992791 | K113: 41688.44866 | L113: 28645.3155
B114: PJM off pk | C114: =SUMPRODUCT(C50:C53,O14:O17)*C96/1000 -> 50345.44368 | D114: 211.8059197 | E114: 782.9148482 | F114: 1.810489705 | G114: 0.03846839674 | H114: 17.96939399 | I114: 635.7354676 | J114: 1181.370792 | K114: 18665.58629 | L114: 14609.0908
B116: Winter - all hrs | C116: =SUM(C45:C49,C54:C56)*C98/1000 -> 212879.0327 | D116: 2479.756849 | E116: 2938.343255 | F116: 17.42498244 | G116: 0.3729507857 | H116: 290.4081799 | I116: 3103.984931 | J116: 6454.542111 | K116: 124846.3651 | L116: 93887.27984
B117: PJM on pk | C117: =(SUMPRODUCT(C45:C49,C9:C13)+SUMPRODUCT(C54:C56,C18:C20))*C99/1000 -> 115110.4308 | D117: 1334.70647 | E117: 1629.193492 | F117: 9.458570717 | G117: 0.2008669605 | H117: 156.5104031 | I117: 1013.858338 | J117: 2100.680205 | K117: 77380.30457 | L117: 56228.78221
B118: PJM off pk | C118: =+(SUMPRODUCT(C45:C49,O9:O13)+SUMPRODUCT(C54:C56,O18:O20))*C100/1000 -> 97768.60194 | D118: 1145.050378 | E118: 1309.149763 | F118: 7.966411726 | G118: 0.1720838252 | H118: 133.8977769 | I118: 2090.126593 | J118: 4353.861906 | K118: 47466.06053 | L118: 37658.49763
B120: Annual | C120: =+C112+C116 -> 345444.188 | D120: =+D112+D116 -> 3049.961471 | E120: 5101.677446 | F120: 22.2048831 | G120: 0.4739998501 | H120: 352.7135586 | I120: 4005.354254 | J120: 8128.905694 | K120: 185200.4001 | L120: 137141.6861
B122: System Total | C122: =SUM(C120:L120) -> 688447.5655
A125: Table #9 | B125: Summary of Average BGS Energy Only Unit Costs @ customer - PSE&G Time Periods | Q125: MWhs in PSE&G time periods | T125: MWhs in PJM time periods | W125: Difference in MWhs | Z125: Check on total $ recovered
B126: based on Forwards prices corrected for congestion & all losses - PSE&G billing time periods | W126: (PJM - PSE&G) | Z126: PSE&G time periods | AC126: PJM time periods (Table #8)
B127: in $/MWh
C128: =+C7 -> RS | D128: =+D7 -> RHS | E128: RLM | F128: WH | G128: WHS | H128: HS | I128: PSAL | J128: BPL | K128: GLP | L128: LPL-S | Q128: =+E128 -> RLM | R128: =+L128 -> LPL-S | T128: =+E128 -> RLM | U128: =+L128 -> LPL-S | W128: =+E128 -> RLM | X128: =+L128 -> LPL-S | Z128: =+E128 -> RLM | AA128: =+L128 -> LPL-S | AC128: =+E128 -> RLM | AD128: =+L128 -> LPL-S
B130: Summer - all hrs | C130: =+C112/SUM(C50:C53)*1000 -> 25.41638369 | D130: 25.40679234 | E130: 25.62459792 | F130: 25.15737187 | G130: 25.26226612 | H130: 26.41812173 | I130: 21.97550583 | J130: 21.90142031 | K130: 26.19301726 | L130: 25.80958249
B131: PSE&G On pk | E131: =+(E113*1000-W131*AVERAGE(E$95,E$96))/Q131 -> 31.38108285 | L131: =+(L113*1000-X131*AVERAGE(L$95,L$96))/R131 -> 31.23441372 | Q131: =SUMPRODUCT(E50:E53,E32:E35) -> 40559.1874 | R131: =SUMPRODUCT(L50:L53,L32:L35) -> 846378.9224 | T131: =SUMPRODUCT(E50:E53,E14:E17) -> 44815.91591 | U131: =SUMPRODUCT(L50:L53,L14:L17) -> 934113.6775 | W131: =+T131-Q131 -> 4256.728503 | X131: =+U131-R131 -> 87734.75509 | Z131: =+E131*Q131/1000 -> 1272.79122 | AA131: =+L131*R131/1000 -> 26436.14942
B132: PSE&G Off pk | E132: =+(E114*1000-W132*AVERAGE(E$95,E$96))/Q132 -> 20.30193299 | L132: =+(L114*1000-X132*AVERAGE(L$95,L$96))/R132 -> 20.2745386 | Q132: =SUMPRODUCT(E50:E53,Q32:Q35) -> 43864.93501 | R132: =SUMPRODUCT(L50:L53,X32:X35) -> 829525.9985 | T132: =SUMPRODUCT(E50:E53,Q14:Q17) -> 39608.2065 | U132: =SUMPRODUCT(L50:L53,X14:X17) -> 741791.2434 | W132: =+T132-Q132 -> -4256.728503 | X132: =+U132-R132 -> -87734.75509 | Z132: =+E132*Q132/1000 -> 890.542971 | AA132: =+L132*R132/1000 -> 16818.25688
Z133: =+Z132+Z131 -> 2163.334191 | AA133: =+AA132+AA131 -> 43254.4063 | AC133: =+E112 -> 2163.334191 | AD133: =+L112 -> 43254.4063
B134: Winter - all hrs | C134: =+C116/SUM(C45:C49,C54:C56)*1000 -> 30.67272845 | D134: 31.81159908 | E134: 30.69739143 | F134: 30.25170563 | G134: 31.07923214 | H134: 32.08187174 | I134: 29.03987324 | J134: 29.00839578 | K134: 30.93384845 | L134: 30.69175523
B135: PSE&G On pk | E135: =+(E117*1000-W135*AVERAGE(E$99,E$100))/Q135 -> 34.66817066 | L135: =+(L117*1000-X135*AVERAGE(L$99,L$100))/R135 -> 34.16084421 | Q135: =SUMPRODUCT(E45:E49,E27:E31)+SUMPRODUCT(E54:E56,E36:E38) -> 41335.34247 | R135: =SUMPRODUCT(L45:L49,L27:L31)+SUMPRODUCT(L54:L56,L36:L38) -> 1499087.796 | T135: =SUMPRODUCT(E45:E49,E9:E13)+SUMPRODUCT(E54:E56,E18:E20) -> 47723.85001 | U135: =SUMPRODUCT(L45:L49,L9:L13)+SUMPRODUCT(L54:L56,L18:L20) -> 1664214.675 | W135: =+T135-Q135 -> 6388.507536 | X135: =+U135-R135 -> 165126.8791 | Z135: =+E135*Q135/1000 -> 1433.020707 | AA135: =+L135*R135/1000 -> 51210.10466
B136: PSE&G Off pk | E136: =+(E118*1000-W136*AVERAGE(E$99,E$100))/Q136 -> 27.67935999 | L136: =+(L118*1000-X136*AVERAGE(L$99,L$100))/R136 -> 27.35801726 | Q136: =SUMPRODUCT(E45:E49,Q27:Q31)+SUMPRODUCT(E54:E56,Q36:Q38) -> 54384.29747 | R136: =SUMPRODUCT(L45:L49,X27:X31)+SUMPRODUCT(L54:L56,X36:X38) -> 1559951.321 | T136: =SUMPRODUCT(E45:E49,Q9:Q13)+SUMPRODUCT(E54:E56,Q18:Q20) -> 47995.78994 | U136: =SUMPRODUCT(L45:L49,X9:X13)+SUMPRODUCT(L54:L56,X18:X20) -> 1394824.442 | W136: =+T136-Q136 -> -6388.507536 | X136: =+U136-R136 -> -165126.8791 | Z136: =+E136*Q136/1000 -> 1505.322547 | AA136: =+L136*R136/1000 -> 42677.17518
Z137: =+Z136+Z135 -> 2938.343255 | AA137: =+AA136+AA135 -> 93887.27984 | AC137: =+E116 -> 2938.343255 | AD137: =+L116 -> 93887.27984
B138: Annual Average | C138: =(C130*SUM(C50:C53)+C134*SUM(C45:C49,C54:C56))/C57 -> 28.41741866 | D138: 30.37981447 | E138: 28.32003384 | F138: 28.98809804 | G138: 29.62499063 | H138: 30.9112357 | I138: 27.08077032 | J138: 27.19097691 | K138: 29.2108775 | L138: 28.9637396
B139: System Average | C139: =+C122/SUM(C57:L57)*1000 -> 28.72034885
A142: Table #10 | B142: Generation & Transmission Obligations and Costs and Other Adjustments | L142: Adj for PLS
B143: =Input!B97 -> Obligations - Peak Load shares eff 1/1/19, scaling factors eff 6/1/18, Transmission Loads eff 1/1/19; costs are market estimates | L143: > 500 kW
B144: in MW | C144: =+C7 -> RS | D144: =+D7 -> RHS | E144: RLM | F144: WH | G144: WHS | H144: HS | I144: PSAL | J144: BPL | K144: GLP | L144: LPL-S | AD144: RS | AE144: RHS | AF144: RLM | AG144: WH | AH144: WHS | AI144: HS | AJ144: PSAL | AK144: BPL | AL144: GLP | AM144: LPL-S
R145: NITS Rate Weighted Average Calculation | AC145: Generation Peak Load Share | AD145: =Input!C101 -> 3942.672087 | AE145: =Input!D101 -> 18.2786511 | AF145: =Input!E101 -> 63.41464767 | AG145: =Input!F101 -> 0 | AH145: =Input!G101 -> 0 | AI145: =Input!H101 -> 3.375014398 | AJ145: =Input!I101 -> 0 | AK145: =Input!J101 -> 0 | AL145: =Input!K101 -> 1677.444323 | AM145: =Input!L101 -> 1328.143827
T146: Tranches | U146: NITS Rate | AC146: Tranmsission Obligation | AD146: =Input!C102 -> 4409.348848 | AE146: =Input!D102 -> 19.95785361 | AF146: =Input!E102 -> 69.35223935 | AG146: =Input!F102 -> 0 | AH146: =Input!G102 -> 0 | AI146: =Input!H102 -> 3.29783843 | AJ146: =Input!I102 -> 0 | AK146: =Input!J102 -> 0 | AL146: =Input!K102 -> 1572.975796 | AM146: =Input!L102 -> 1261.747991
B147: Gen Obl - MW | C147: =ROUND(AD145*$AD$148*$AD$149,1) -> 4746.8 | D147: =ROUND(AE145*$AD$148*$AD$149,1) -> 22 | E147: 76.3 | F147: 0 | G147: 0 | H147: 4.1 | I147: 0 | J147: 0 | K147: 2019.6 | L147: =ROUND(AM145*$AD$148*$AD$149*(1-AE45),1) -> 1046.7 | R147: =Input!C108 -> 2018 | S147: NITS Rate | T147: =Input!D108 -> 29 | U147: =Input!E108 -> 101197 | V147: =U147/$T$150*T147 -> 34526.03529
R148: =Input!C109 -> 2019 | S148: NITS Rate | T148: =Input!D109 -> 28 | U148: =Input!E109 -> 104709.15 | V148: =U148/$T$150*T148 -> 34492.42588 | AC148: Final Zonal RPM Scaling Factor | AD148: =Input!C104 -> 1.105054399
B149: Trans Obl - MW | C149: =ROUND(AD146,1) -> 4409.3 | D149: =ROUND(AE146,1) -> 20 | E149: 69.4 | F149: 0 | G149: 0 | H149: 3.3 | I149: 0 | J149: 0 | K149: 1573 | L149: =ROUND(AM146*(1-AF45),1) -> 826 | R149: =Input!C110 -> 2020 | S149: NITS Rate | T149: =Input!D110 -> 28 | U149: =Input!E110 -> 138497.0843 | V149: =U149/$T$150*T149 -> 45622.56895 | X149: =+Input!B105 -> PJM June 1, -1 (through May 31, ) Forecast Pool Requirement | AD149: =Input!C105 -> 1.0895
T150: =SUM(T147:T149) -> 85 | V150: =ROUND(SUM(V147:V149),2) -> 114641.03
B151: # of Months and Days used in this analysis
D152: # of summer days = | E152: 122 | G152: # of summer months = | H152: 4
D153: # of winter days = | E153: 243 | G153: # of winter months = | H153: 8
G154: total # months = | H154: =+H152+H153 -> 12
B155: Transmission Cost | C155: year round = | D155: =V150 -> 114641.03 | E155: per MW-yr
D157: Base Capacity | E157: Capacity Proxy True Up | F157: Total Capacity
B158: Generation Capacity cost | C158: summer = | D158: =Input!E113 -> 174.13 | E158: =SUM(auction_results_and_rates!E13:E13)/SUM(auction_results_and_rates!C13:E13)*Input!E115 -> 0 | F158: =SUM(D158:E158) -> 174.13 | G158: $/MW/day
C159: winter = | D159: =Input!E114 -> 174.13 | E159: =E158 -> 0 | F159: =SUM(D159:E159) -> 174.13 | G159: $/MW/day | Q159: Resulting average generation capacity cost =
P160: annual >> | Q160: =(F158*E152+F159*E153)/1000 -> 63.55745 | R160: per kW/yr
C161: =+C7 -> RS | D161: =+D7 -> RHS
B162: % usage in Summer Blocks
B163: Block 1 (0-600 kWh/m) | C163: =ROUND(Q165/Q167,3) -> 0.646 | D163: =ROUND(R165/R167,3) -> 0.661 | F163: (based on W/N actuals used in settlement and final rate design of 2018 Rate Case, rounded to .1%) | P163: Blocking Percentages based on Annualized W/N Usage Used in 2018 Electric Rate Case Settlement
B164: Block 2 (>600 kWh/m) | C164: =1-C163 -> 0.354 | D164: =1-D163 -> 0.339 | Q164: RS | R164: RHS
P165: June - September (0-600) | Q165: 3528124 | R165: 19973
B166: Required summer inversion = | C166: =Input!C119 -> 0.8652 | D166: =Input!D119 -> 1.1569 | E166: ¢/kWh | F166: (same as 2003/2004 BGS blocking inversion) | P166: June - September (600+) | Q166: 1931618 | R166: 10227
P167: Total Summer Usage | Q167: =SUM(Q165:Q166) -> 5459742 | R167: =SUM(R165:R166) -> 30200
A168: Table #11 | B168: Ancillary Services & Renewable Power Cost
B169: Ancillary Services | D169: =+Input!D123 -> 2
B170: Renewable Power Cost | D170: =+Input!D124 -> 16.72
B171: Total AncillaryServices & Renewable Power Costs | D171: =SUM(D169:D170) -> 18.72 | E171: per MWh @ bulk system
A174: Table #12 | B174: Summary of Obligation Costs Expressed as $/MWh @ customer (for non-demand rates only)
C176: =+C7 -> RS | D176: RHS | E176: RLM | F176: WH | G176: WHS | H176: HS | I176: PSAL | J176: BPL
B178: Transmission Obl - all months | C178: =(+$D$155*C149*$H$154/12)/C57 -> 41.58306175 | D178: =(+$D$155*D149*$H$154/12)/D57 -> 22.83814569 | E178: =(+$D$155*E149*$H$154/12)/SUMPRODUCT(E27:E38,E45:E56) -> 97.150414 | F178: =(+$D$155*F149*$H$154/12)/F57 -> 0 | G178: =(+$D$155*G149*$H$154/12)/G57 -> 0 | H178: =(+$D$155*H149*$H$154/12)/H57 -> 33.15493885 | I178: =(+$D$155*I149*$H$154/12)/I57 -> 0 | J178: =(+$D$155*J149*$H$154/12)/J57 -> 0
B180: Generation Obl -
B181: per annual MWh | C181: =((+$Q$160*C147*1000)/C57) -> 24.81842022 | D181: =((+$Q$160*D147*1000)/D57) -> 13.92771622 | E181: =(+$Q$160*E147*1000)/SUMPRODUCT(E45:E56,E27:E38) -> 59.21559648 | F181: =((+$Q$160*F147*1000)/F57) -> 0 | G181: =((+$Q$160*G147*1000)/G57) -> 0 | H181: =((+$Q$160*H147*1000)/H57) -> 22.83728823 | I181: =((+$Q$160*I147*1000)/I57) -> 0 | J181: =((+$Q$160*J147*1000)/J57) -> 0
B182: recovery per summer MWh | C182: =(C147*$F$158*$E$152)/SUM(C50:C53) -> 19.33386749 | D182: =(D147*$F$158*$E$152)/SUM(D50:D53) -> 20.82453035 | E182: =(E147*$F$158*$E$152)/SUMPRODUCT(E50:E53,E32:E35) -> 39.96397911 | F182: =(F147*$F$158*$E$152)/SUM(F50:F53) -> 0 | G182: =(G147*$F$158*$E$152)/SUM(G50:G53) -> 0 | H182: =(H147*$F$158*$E$152)/SUM(H50:H53) -> 36.93122255 | I182: =(I147*$F$158*$E$152)/SUM(I50:I53) -> 0 | J182: =(J147*$F$158*$E$152)/SUM(J50:J53) -> 0
B183: recovery per winter MWh | C183: =(C147*$F$159*$E$153)/SUM(C45:C49,C54:C56) -> 28.94012009 | D183: =(D147*$F$159*$E$153)/SUM(D45:D49,D54:D56) -> 11.94205196 | E183: =(E147*$F$159*$E$153)/(SUMPRODUCT(E45:E49,E27:E31)+SUMPRODUCT(E54:E56,E36:E38)) -> 78.10572561 | F183: =(F147*$F$159*$E$153)/SUM(F45:F49,F54:F56) -> 0 | G183: =(G147*$F$159*$E$153)/SUM(G45:G49,G54:G56) -> 0 | H183: =(H147*$F$159*$E$153)/SUM(H45:H49,H54:H56) -> 19.16525418 | I183: =(I147*$F$159*$E$153)/SUM(I45:I49,I54:I56) -> 0 | J183: =(J147*$F$159*$E$153)/SUM(J45:J49,J54:J56) -> 0
E184: For RLM, per
E185: on-peak kWh only
A187: Table #13 | B187: Summary of BGS Unit Costs @ customer
B189: NON-DEMAND RATES
B190: includes energy, G&T obligations, and Ancillary Services - adjusted to billing time periods
B191: in $/MWh
C192: =+C7 -> RS | D192: RHS | E192: RLM | F192: WH | G192: WHS | H192: HS | I192: PSAL | J192: BPL
B194: Summer - all hrs | C194: =+C130+($D$171*C80)+C$178+C181 -> 111.7884365 | D194: =+D130+($D$171*D80)+D$178+D181 -> 82.14322513 | F194: =+F130+($D$171*F80)+F$178+F181 -> 45.12794275 | G194: =+G130+($D$171*G80)+G$178+G181 -> 45.232837 | H194: =+H130+($D$171*H80)+H$178+H181 -> 102.3809197 | I194: =+I130+($D$171*I80)+I$178+I181 -> 41.94607671 | J194: =+J130+($D$171*J80)+J$178+J181 -> 41.87199119
B195: PSE&G On pk | E195: =+E131+($D$171*E80)+E$178+E181 -> 207.7176642
B196: PSE&G Off pk | E196: =+E132+($D$171*E80) -> 40.27250387
B197: Block 1 (0-600 kWh/m) | C197: =(C194*SUM(C50:C53)-C166*10*C164*SUM(C50:C53))/SUM(C50:C53) -> 108.7256285 | D197: =(D194*SUM(D50:D53)-D166*10*D164*SUM(D50:D53))/SUM(D50:D53) -> 78.22133413
B198: Block 2 (>600 kWh/m) | C198: =+C197+C166*10 -> 117.3776285 | D198: =+D197+D166*10 -> 89.79033413
B200: Winter - all hrs | C200: =+C134+($D$171*C80)+C$178+C181 -> 117.0447813 | D200: =+D134+($D$171*D80)+D$178+D181 -> 88.54803187 | F200: =+F134+($D$171*F80)+F$178+F181 -> 50.22227651 | G200: =+G134+($D$171*G80)+G$178+G181 -> 51.04980302 | H200: =+H134+($D$171*H80)+H$178+H181 -> 108.0446697 | I200: =+I134+($D$171*I80)+I$178+I181 -> 49.01044412 | J200: =+J134+($D$171*J80)+J$178+J181 -> 48.97896666
B201: PSE&G On pk | E201: =+E135+($D$171*E80)+E$178+E181 -> 211.004752
B202: PSE&G Off pk | E202: =+E136+($D$171*E80) -> 47.64993087
B204: Annual -all hrs | C204: =+C138+($D$171*C80)+C$178+C181 -> 114.7894715 | D204: =+D138+($D$171*D80)+D$178+D181 -> 87.11624726 | E204: =((E195*SUMPRODUCT(E32:E35,E50:E53)+E196*SUMPRODUCT(Q32:Q35,E50:E53))+(E201*(SUMPRODUCT(E27:E31,E45:E49)+SUMPRODUCT(E36:E38,E54:E56))+E202*(SUMPRODUCT(Q27:Q31,E45:E49)+SUMPRODUCT(Q36:Q38,E54:E56))))/E57 -> 119.3756134 | F204: =+F138+($D$171*F80)+F$178+F181 -> 48.95866892 | G204: =+G138+($D$171*G80)+G$178+G181 -> 49.59556151 | H204: =+H138+($D$171*H80)+H$178+H181 -> 106.8740337 | I204: =+I138+($D$171*I80)+I$178+I181 -> 47.0513412 | J204: =+J138+($D$171*J80)+J$178+J181 -> 47.16154779
B206: DEMAND RATES
B207: includes energy and Ancillary Services, G&T obligations charged separately - adjusted to billing time periods
B208: in $/MWh
C209: =+K7 -> GLP | D209: =+L7 -> LPL-S | H209: PLUS: | I209: =+C209 -> GLP | J209: =+D209 -> LPL-S
B211: Summer - all hrs | C211: =+K130+($D$171*K80) -> 46.16358814 | D211: =+L130+($D$171*L$80) -> 45.78015337 | H211: Gen Cost
B212: PSE&G On pk | D212: =+L131+($D$171*L$80) -> 51.2049846 | H212: summer | I212: =+$F158*$E152/$H152/1000 -> 5.310965 | J212: =+$F158*$E152/$H152/1000 -> 5.310965 | K212: per kW of G obl /month
B213: PSE&G Off pk | D213: =+L132+($D$171*L$80) -> 40.24510948 | H213: winter | I213: =+$F159*$E153/$H153/1000 -> 5.28919875 | J213: =+$F159*$E153/$H153/1000 -> 5.28919875 | K213: per kW of G obl /month
H214: annual | I214: =($F$158*$E$152+$F$159*$E$153)/$H$154/1000 -> 5.296454167 | J214: =($F$158*$E$152+$F$159*$E$153)/$H$154/1000 -> 5.296454167 | K214: per kW of G obl /month
B215: Winter - all hrs | C215: =+K134+($D$171*K80) -> 50.90441933 | D215: =+L134+($D$171*L$80) -> 50.66232611
B216: PSE&G On pk | D216: =+L135+($D$171*L$80) -> 54.13141509 | H216: Trans cost
B217: PSE&G Off pk | D217: =+L136+($D$171*L$80) -> 47.32858814 | H217: all months | I217: =+$D155/1000/12 -> 9.553419167 | J217: =+$D155/1000/12 -> 9.553419167 | K217: per kW of T obl /month
B219: Annual - all hrs per MWh only | C219: =+K138+($D$171*K80) -> 49.18144838 | D219: =+L138+($D$171*L$80) -> 48.93431048
B221: Including T&G Obligation $
B222: Summer - all hrs | C222: =(C211*W49+((I214*$H152)*K147*1000)+(I217*$H152*K149*1000))/W49 -> 90.81980049 | D222: =(D211*X49+((J214*$H152)*L147*1000)+(J217*$H152*L149*1000))/X49 -> 77.84622738 | F222: Note: Obligation $ included in On pk costs
B223: PSE&G On pk | D223: =(D212*X50+((J214*$H152)*L147*1000)+(J217*$H152*L149*1000))/X50 -> 114.6986395
B224: PSE&G Off pk | D224: =+D213 -> 40.24510948
B226: Winter - all hrs | C226: =(C215*W45+((I214*$H153)*K147*1000)+(I217*$H153*K149*1000))/W45 -> 101.8950886 | D226: =(D215*X45+((J214*$H153)*L147*1000)+(J217*$H153*L149*1000))/X45 -> 85.7973402
B227: PSE&G On pk | D227: =(D216*X46+((J214*$H153)*L147*1000)+(J217*$H153*L149*1000))/X46 -> 125.827938
B228: PSE&G Off pk | D228: =+D217 -> 47.32858814
B230: Annual - including T&G Obl $ | C230: =(C219*K57+((I214*$H152+I214*$H153)*K147*1000)+(I217*$H154*K149*1000))/K57 -> 97.86997171 | D230: =(D219*L57+((J214*$H152+J214*$H153)*L147*1000)+(J217*$H154*L149*1000))/L57 -> 82.98309171
B232: ALL RATES
B233: Grand Total Cost in $1000 = | C233: =(+SUMPRODUCT(C204:J204,C57:J57)+SUMPRODUCT(C230:D230,K57:L57))/1000 -> 2461383.359
C234: All-In Average cost @ customer = | D234: =+C233/SUM(C57:L57)*1000 -> 102.6828945 | E234: per MWh at customer (per customer metered MWh)
C235: All-In Average costs @ transmission nodes = | D235: =+C233/SUMPRODUCT(C57:L57,C85:L85)*1000 -> 97.27664752 | E235: per MWh at transmission nodes (per metered MWh at transmission node)
A238: Table #14 | B238: Ratio of BGS Unit Costs @ customer to All-In Average Cost @ transmission nodes - rounded to 3 decimal places, unit obligation $ rounded to 4 decimal places
B240: NON-DEMAND RATES
B241: includes energy, G&T obligations, and Ancillary Services - adjusted to billing time periods
C243: =+C7 -> RS | D243: RHS | E243: RLM | F243: WH | G243: WHS | H243: HS | I243: PSAL | J243: BPL
B245: Summer - all hrs | F245: =ROUND(+F194/$D$235,3) -> 0.464 | G245: =ROUND(+G194/$D$235,3) -> 0.465 | H245: =ROUND(+H194/$D$235,3) -> 1.052 | I245: =ROUND(+I194/$D$235,3) -> 0.431 | J245: =ROUND(+J194/$D$235,3) -> 0.43
B246: PSE&G On pk | E246: =ROUND(+E195/$D$235,3) -> 2.135 | J246: Use weighted average
B247: PSE&G Off pk | E247: =ROUND(+E196/$D$235,3) -> 0.414 | J247: for all streetlighting = | K247: =ROUND((I245*U49+J245*V49)/(U49+V49),3) -> 0.43
B249: All usage Multiplier | C249: =ROUND(+C194/$D$235,3) -> 1.149 | D249: =ROUND(+D194/$D$235,3) -> 0.844
B250: Constant (in $/MWh) | C250: =ROUND(+C197-C194,3) -> -3.063 | D250: =ROUND(D197-D194,3) -> -3.922 | E250: for Block 1 (0-600 kWh/m) usage
... 76 more rows

Sheet auction_results_and_rates
B1: Calculation of June 2020 to May 2021 BGS-RSCP Rates
B2: Illustrative Purposes Only
B3: NJ Sales & Use Tax (SUT) excluded
A5: Table A | B5: Auction Results
A6: line # | B6: Specific BGS-FP Auction >> | C6: =Input!C135 -> remaining portion of 36 month bid - 2018 auction | D6: =Input!D135 -> remaining portion of 36 month bid - 2019 auction | E6: =Input!E135 -> 36 month bid - 2020 auction | G6: Notes:
A8: 1 | B8: Winning Bid - in $/MWh | C8: =Input!C136 -> 91.77 | D8: =Input!D136 -> 98.04 | E8: =ROUND(IF(Input!E138="yes",Input!$E$136,IF(LEFT(Input!B2,6)="Rebase",Input!E136,(bid_factors!D235*(1+#REF!)*SUM(C20:C21)/1000-SUM(C26:D26))/(E$13/E$14/1000*(E16*$C20+E17*$C21)))),2) -> 98.04 | G8: ="Winning Bid" -> Winning Bid
A9: 1A | B9: Capacity Proxy Price True-up - in $/MWh | E9: 0 | G9: Entered after 2022 BGS Auction
B10: Total - in $/MWh | C10: =+C8+C9 -> 91.77 | D10: =+D8+D9 -> 98.04 | E10: =+E8+E9 -> 98.04 | G10: = line 1 + line 1A
B12: (includes all payments, including impact of PJM marginal losses)
A13: 2 | B13: # of Tranches for Bid | C13: =Input!C137 -> 29 | D13: =Input!D137 -> 28 | E13: =Input!E137 -> 28 | G13: from then current Bid
A14: 3 | B14: Total # of Tranches | C14: 85 | D14: 85 | E14: 85 | G14: from then current Bid
B15: Payment Factors
A16: 4 | B16: Summer | C16: =Input!C140 -> 1 | D16: =Input!D140 -> 1 | E16: =IF(LEFT(Input!$B$2,6)="rebase",Input!E140,bid_factors!L316) -> 1
A17: 5 | B17: Winter | C17: =Input!C141 -> 1 | D17: =Input!D141 -> 1 | E17: =IF(LEFT(Input!$B$2,6)="rebase",Input!E141,bid_factors!L317) -> 1
B19: Applicable Customer Usage @ transmission nodes - in MWh
A20: 6 | B20: Summer MWh | C20: =+bid_factors!C352 -> 9946408.713 | G20: from Table #17 of the current Bid Factor Spreadsheet
A21: 7 | B21: Winter MWh | C21: =+bid_factors!C353 -> 15356512.61
B23: Total Payment to Suppliers - in $1000
A24: 8 | B24: Summer | C24: =+C$8*C$13/C$14*C16*$C20/1000+C$9*C$13/C$14*$C20/1000 -> 311419.7165 | D24: =+D$8*D$13/D$14*D16*$C20/1000+D$9*D$13/D$14*$C20/1000 -> 321224.5351 | E24: 321224.5351 | G24: = (1) * (2)/(3) * (4) * (6) + (1A) * (2)/(3) * (6)
A25: 9 | B25: Winter | C25: =+C$8*C$13/C$14*C17*$C21/1000+C$9*C$13/C$14*$C21/1000 -> 480808.7965 | D25: =+D$8*D$13/D$14*D17*$C21/1000+D$9*D$13/D$14*$C21/1000 -> 495946.7046 | E25: 495946.7046 | G25: = (1) * (2)/(3) * (5) * (7) + (1A) * (2)/(3) * (7)
A26: 10 | B26: Total | C26: =+C25+C24 -> 792228.513 | D26: =+D25+D24 -> 817171.2398 | E26: =+E25+E24 -> 817171.2398 | G26: Note: $ reflect total payment
B28: Average Payment to Suppliers - in $/MWh
A29: 11 | B29: Summer | C29: =ROUND(+SUM(C24:E24)/C20*1000,3) -> 95.901 | G29: = sum(line 8) / (6) - rounded to 3 decimal places
A30: 12 | B30: Winter | C30: =ROUND(+SUM(C25:E25)/C21*1000,3) -> 95.901 | G30: = sum(line 9) / (7) - rounded to 3 decimal places
A32: 13 | B32: Total weighted average | C32: =ROUND(+SUM(C26:E26)/(C20+C21)*1000,3) -> 95.901 | D32: <<< used in calculation of | G32: = sum(line 10) / [ (6) + (7)]
D33: Customer Rates | G33: rounded to 3 decimal places
B35: Reconciliation of amounts - in $1000
A36: 14 | B36: Weighted Average * Total MWh = | C36: =(C32*(C21+C20))/1000 -> 2426575.458 | G36: = (13) * [(6)+(7)] / 1000
A37: 15 | B37: Total Payment to Suppliers = | C37: =SUM(C26:E26) -> 2426570.992 | G37: = sum (line 10)
A38: 16 | B38: Difference = | C38: =+C36-C37 -> 4.465221409 | G38: = line (14) - line (15)
A41: Table B | B41: Ratio of BGS Unit Costs @ customer to All-In Average Cost @ transmission nodes | G41: from Table #14 of the bid factor spreadsheet ---
G42: rounded to 3 decimal places, unit obligation $ rounded to 4 decimal places
B43: NON-DEMAND RATES
B44: includes energy, G&T obligations, and Ancillary Services - adjusted to billing time periods
C46: =+bid_factors!C243 -> RS | D46: =+bid_factors!D243 -> RHS | E46: =+bid_factors!E243 -> RLM | F46: =+bid_factors!F243 -> WH | G46: =+bid_factors!G243 -> WHS | H46: =+bid_factors!H243 -> HS | I46: =+bid_factors!I243 -> PSAL | J46: =+bid_factors!J243 -> BPL
B48: Summer - all hrs | F48: =+bid_factors!F245 -> 0.464 | G48: =+bid_factors!G245 -> 0.465 | H48: =+bid_factors!H245 -> 1.052 | I48: =+bid_factors!I245 -> 0.431 | J48: =+bid_factors!J245 -> 0.43
B49: PSE&G On pk | E49: =+bid_factors!E246 -> 2.135 | J49: Use weighted average
B50: PSE&G Off pk | E50: =+bid_factors!E247 -> 0.414 | J50: for all streetlighting = | K50: =+bid_factors!K247 -> 0.43
B52: All usage Multiplier | C52: =+bid_factors!C249 -> 1.149 | D52: =+bid_factors!D249 -> 0.844
B53: Constant (in $/MWh) | C53: =+bid_factors!C250 -> -3.063 | D53: =+bid_factors!D250 -> -3.922 | E53: for Block 1 (0-600 kWh/m) usage
B54: Constant (in $/MWh) | C54: =+bid_factors!C251 -> 5.589 | D54: =+bid_factors!D251 -> 7.647 | E54: for Block 2 (>600 kWh/m) usage
B58: Winter - all hrs | C58: =+bid_factors!C255 -> 1.203 | D58: =+bid_factors!D255 -> 0.91 | F58: =+bid_factors!F255 -> 0.516 | G58: =+bid_factors!G255 -> 0.525 | H58: =+bid_factors!H255 -> 1.111 | I58: =+bid_factors!I255 -> 0.504 | J58: =+bid_factors!J255 -> 0.504
B59: PSE&G On pk | E59: =+bid_factors!E256 -> 2.169 | J59: Use weighted average
B60: PSE&G Off pk | E60: =+bid_factors!E257 -> 0.49 | J60: for all streetlighting = | K60: =+bid_factors!K257 -> 0.504
B62: Annual - all hrs | C62: =+bid_factors!C259 -> 1.18 | D62: =+bid_factors!D259 -> 0.896 | E62: =+bid_factors!E259 -> 1.227 | F62: =+bid_factors!F259 -> 0.503 | G62: =+bid_factors!G259 -> 0.51 | H62: =+bid_factors!H259 -> 1.099 | I62: =+bid_factors!I259 -> 0.484 | J62: =+bid_factors!J259 -> 0.485
B65: DEMAND RATES
B66: includes energy and Ancillary Services, G&T obligations charged separately - adjusted to billing time periods
C68: =+bid_factors!C265 -> GLP | D68: =+bid_factors!D265 -> GLP | E68: =+bid_factors!E265 -> LPL-S | F68: =+bid_factors!F265 -> LPL-S | H68: PLUS: | I68: =+C68 -> GLP | J68: =+E68 -> LPL-S
C69: Multiplier | D69: Constant (in $/MWh) | E69: Multiplier | F69: Constant (in $/MWh)
B70: Summer - all hrs | C70: =+bid_factors!C267 -> 0.934 | D70: =+bid_factors!D267 -> -44.656 | H70: Gen Cost
B71: PSE&G On pk | E71: =+bid_factors!E268 -> 1.179 | F71: =+bid_factors!F268 -> -63.494 | H71: summer | I71: =+bid_factors!I$270 -> 5.2965 | J71: =+bid_factors!J$270 -> 5.2965 | K71: per kW of G obl /month
B72: PSE&G Off pk | E72: =+bid_factors!E269 -> 0.414 | F72: =+bid_factors!F269 -> 0 | H72: winter | I72: =+bid_factors!I$270 -> 5.2965 | J72: =+bid_factors!J$270 -> 5.2965 | K72: per kW of G obl /month
B74: Winter - all hrs | C74: =+bid_factors!C271 -> 1.047 | D74: =+bid_factors!D271 -> -50.991 | H74: Trans cost
B75: PSE&G On pk | E75: =+bid_factors!E272 -> 1.294 | F75: =+bid_factors!F272 -> -71.697 | H75: all months | I75: =+bid_factors!I273 -> 9.5534 | J75: =+bid_factors!J273 -> 9.5534 | K75: per kW of T obl /month
B76: PSE&G Off pk | E76: =+bid_factors!E273 -> 0.487 | F76: =+bid_factors!F273 -> 0
B78: Annual - including T&G Obl $ | C78: =+bid_factors!C275 -> 1.006 | E78: =+bid_factors!E275 -> 0.853
A81: Table C | B81: Preliminary Resulting BGS Rates (in cents per kWh) - equal to bid factors times weighted average bid price
B82: rounded to 4 decimal places
B84: NON-DEMAND RATES -----------------------------------------------------------------------------------------------------------------------------------------------------------------------
B85: includes energy, G&T obligations, and Ancillary Services - adjusted to billing time periods
C87: =+C46 -> RS | D87: =+D46 -> RHS | E87: RLM | F87: WH | G87: WHS | H87: HS | I87: PSAL | J87: BPL
B89: Summer - all hrs | F89: =ROUND(($C$32*F48)/10,4) -> 4.4498 | G89: =ROUND(($C$32*G48)/10,4) -> 4.4594 | H89: =ROUND(($C$32*H48)/10,4) -> 10.0888 | I89: =ROUND(($C$32*K50)/10,4) -> 4.1237 | J89: =+I89 -> 4.1237
B90: PSE&G On pk | E90: =ROUND(($C$32*E49)/10,4) -> 20.4749
B91: PSE&G Off pk | E91: =ROUND(($C$32*E50/10),4) -> 3.9703
B93: for Block 1 (0-600 kWh/m) usage | C93: =ROUND((+$C$32*C52+C53)/10,4) -> 10.7127 | D93: =ROUND((+$C$32*D52+D53)/10,4) -> 7.7018
B94: for Block 2 (>600 kWh/m) usage | C94: =ROUND((+$C$32*C52+C54)/10,4) -> 11.5779 | D94: =ROUND((+$C$32*D52+D54)/10,4) -> 8.8587
B96: Winter - all hrs | C96: =ROUND(($C$32*C58)/10,4) -> 11.5369 | D96: =ROUND(($C$32*D58)/10,4) -> 8.727 | F96: =ROUND(($C$32*F58)/10,4) -> 4.9485 | G96: =ROUND(($C$32*G58)/10,4) -> 5.0348 | H96: =ROUND(($C$32*H58)/10,4) -> 10.6546 | I96: =ROUND(($C$32*K60)/10,4) -> 4.8334 | J96: =+I96 -> 4.8334
B97: PSE&G On pk | E97: =ROUND(($C$32*E59)/10,4) -> 20.8009
B98: PSE&G Off pk | E98: =ROUND(($C$32*E60)/10,4) -> 4.6991
B102: DEMAND RATES --------------------------------------------------------------------------------------------------------------------------------------------------------------------------------
B103: includes energy and Ancillary Services, G&T obligations charged separately - adjusted to billing time periods
C105: =+C68 -> GLP | E105: =+E68 -> LPL-S | H105: PLUS: | I105: =+C105 -> GLP | J105: =+E105 -> LPL-S
B107: Summer - all hrs | C107: =ROUND(($C$32*C70+D70)/10,4) -> 4.4916 | H107: Gen Cost
B108: PSE&G On pk | E108: =ROUND(($C$32*E71+F71)/10,4) -> 4.9573 | H108: summer | I108: =+I71 -> 5.2965 | J108: =+J71 -> 5.2965 | K108: per kW of G obl /month
B109: PSE&G Off pk | E109: =ROUND(($C$32*E72+F72)/10,4) -> 3.9703 | H109: winter | I109: =+I72 -> 5.2965 | J109: =+J72 -> 5.2965 | K109: per kW of G obl /month
B111: Winter - all hrs | C111: =ROUND(($C$32*C74+D74)/10,4) -> 4.9417 | H111: Trans cost
B112: PSE&G On pk | E112: =ROUND(($C$32*E75+F75)/10,4) -> 5.2399 | H112: all months | I112: =+I75 -> 9.5534 | J112: =+J75 -> 9.5534 | K112: per kW of T obl /month
B113: PSE&G Off pk | E113: =ROUND(($C$32*E76+F76)/10,4) -> 4.6704
A117: Table D | B117: Revenue Recovery Calculations - Reconciliation of seasonal Customer Revenue and Supplier Payments, based on actual anticipated revenues and payments
C119: RS | D119: RHS | E119: RLM | F119: WH | G119: WHS | H119: HS | I119: PSAL | J119: BPL
B120: Total Preliminary Rate Revenue - in $1000
B121: Summer | C121: =+C93/100*bid_factors!O53+auction_results_and_rates!C94/100*bid_factors!O54 -> 574720.9824 | D121: =+D93/100*bid_factors!P53+auction_results_and_rates!D94/100*bid_factors!P54 -> 1816.533917 | E121: =+E90/100*bid_factors!Q50+E91/100*bid_factors!Q51 -> 10046.02258 | F121: =+F89/100*bid_factors!R49 -> 8.45462 | G121: =+G89/100*bid_factors!S49 -> 0.178376 | H121: =+H89/100*bid_factors!T49 -> 237.9376213 | I121: =+I89/100*bid_factors!U49 -> 1691.418029 | J121: =+J89/100*bid_factors!V49 -> 3152.56865
B122: Winter | C122: =+C96/100*bid_factors!O45 -> 800699.591 | D122: =+D96/100*bid_factors!P45 -> 6802.813642 | E122: =+E97/100*bid_factors!Q46+auction_results_and_rates!E98/100*bid_factors!Q47 -> 11153.69577 | F122: =+F96/100*bid_factors!R45 -> 28.50336 | G122: =+G96/100*bid_factors!S45 -> 0.604176 | H122: =+H96/100*bid_factors!T45 -> 964.4646107 | I122: =+I96/100*bid_factors!U45 -> 5166.276258 | J122: =+J96/100*bid_factors!V45 -> 10754.605
B123: Total | C123: =+C122+C121 -> 1375420.573 | D123: =+D122+D121 -> 8619.347559 | E123: 21199.71835 | F123: 36.95798 | G123: 0.782552 | H123: 1202.402232 | I123: 6857.694287 | J123: 13907.17365
C126: GLP | D126: GLP | F126: LPL-S | G126: LPL-S
C127: Energy $ | D127: Obligation $ | F127: Energy $ | G127: Obligation $
B129: Summer | C129: =+C107/100*bid_factors!W49 -> 103495.5923 | D129: =I108*bid_factors!K147*4+auction_results_and_rates!I112*bid_factors!K149*4 -> 102897.2384 | F129: =+E108/100*bid_factors!X50+auction_results_and_rates!E109/100*bid_factors!X51 -> 74892.21304 | G129: =auction_results_and_rates!J108*bid_factors!L147*4+auction_results_and_rates!J112*bid_factors!L149*4 -> 53739.8198
B130: Winter | C130: =+C111/100*bid_factors!W45 -> 199442.783 | D130: =auction_results_and_rates!I109*bid_factors!K147*8+auction_results_and_rates!I112*bid_factors!K149*8 -> 205794.4768 | F130: =+E112/100*bid_factors!X46+auction_results_and_rates!E113/100*bid_factors!X47 -> 151406.6679 | G130: =auction_results_and_rates!J109*bid_factors!L147*8+auction_results_and_rates!J112*bid_factors!L149*8 -> 107479.6396
B131: Total | C131: =+C130+C129 -> 302938.3753 | D131: =+D130+D129 -> 308691.7152 | F131: =+F130+F129 -> 226298.881 | G131: =+G130+G129 -> 161219.4594
C134: Energy $ | D134: Obligation $ | E134: Total $
B135: Total Summer | C135: =SUM(C121:J121)+C129+F129 -> 770061.9015 | D135: =+D129+G129 -> 156637.0582 | E135: =+C135+D135 -> 926698.9597
B136: Total Winter | C136: =SUM(C122:J122)+C130+F130 -> 1186420.005 | D136: =+D130+G130 -> 313274.1164 | E136: =+C136+D136 -> 1499694.121
B137: Grand Total | C137: =+C136+C135 -> 1956481.906 | D137: =+D131+G131 -> 469911.1746 | E137: =+C137+D137 -> 2426393.081
B140: Total Supplier Payment - in $1000
B141: Summer | C141: =+C24+D24+E24 -> 953868.7867
B142: Winter | C142: =+C25+D25+E25 -> 1472702.206
B143: Total | C143: =+C142+C141 -> 2426570.992 | E143: kWh Rate
E144: Adjustment | F144: rounded to 5 decimal places
B145: Differences - in $1000 | E145: Factors
B146: Summer | C146: =+C141-E135 -> 27169.82702 | E146: =ROUND(1+(C146/C135),5) -> 1.03528
B147: Winter | C147: =+C142-E136 -> -26991.9154 | E147: =ROUND(1+(C147/C136),5) -> 0.97725
B148: Total | C148: =+C143-E137 -> 177.9116232
C150: Note: These differences are due to rounding and seasonal differences in Bidder Payments (which are based on prior
C151: wining bids and Seasonal Payment Factors) and current Rates (based on current seasonal market differentials)
A153: Table E | B153: Final Resulting BGS Rates from Auctions (in cents per kWh) - with preliminary kWh rates adjusted by the kWh Rate Adjustment Factor
B154: rounded to 4 decimal places
B156: NON-DEMAND RATES -----------------------------------------------------------------------------------------------------------------------------------------------------------------------
B157: includes energy, G&T obligations, and Ancillary Services - adjusted to billing time periods & adjustment to energy price
C159: =+C119 -> RS | D159: =+D119 -> RHS | E159: RLM | F159: WH | G159: WHS | H159: HS | I159: PSAL | J159: BPL
B161: Summer - all hrs | F161: =ROUND(+F89*$E$146,4) -> 4.6068 | G161: =ROUND(+G89*$E$146,4) -> 4.6167 | H161: =ROUND(+H89*$E$146,4) -> 10.4447 | I161: =ROUND(+I89*$E$146,4) -> 4.2692 | J161: =ROUND(+J89*$E$146,4) -> 4.2692
B162: PSE&G On pk | E162: =ROUND(+E90*$E$146,4) -> 21.1973
B163: PSE&G Off pk | E163: =ROUND(+E91*$E$146,4) -> 4.1104
B165: for Block 1 (0-600 kWh/m) usage | C165: =ROUND(+C93*$E$146,4) -> 11.0906 | D165: =ROUND(+D93*$E$146,4) -> 7.9735
B166: for Block 2 (>600 kWh/m) usage | C166: =ROUND(+C94*$E$146,4) -> 11.9864 | D166: =ROUND(+D94*$E$146,4) -> 9.1712
B168: Winter - all hrs | C168: =ROUND(+C96*$E$147,4) -> 11.2744 | D168: =ROUND(+D96*$E$147,4) -> 8.5285 | F168: =ROUND(+F96*$E$147,4) -> 4.8359 | G168: =ROUND(+G96*$E$147,4) -> 4.9203 | H168: =ROUND(+H96*$E$147,4) -> 10.4122 | I168: =ROUND(+I96*$E$147,4) -> 4.7234 | J168: =ROUND(+J96*$E$147,4) -> 4.7234
B169: PSE&G On pk | E169: =ROUND(+E97*$E$147,4) -> 20.3277
B170: PSE&G Off pk | E170: =ROUND(+E98*$E$147,4) -> 4.5922
B174: DEMAND RATES --------------------------------------------------------------------------------------------------------------------------------------------------------------------------------
B175: includes energy and Ancillary Services, G&T obligations charged separately - adjusted to billing time periods & adjustment to energy price
C177: =+C105 -> GLP | E177: =+E105 -> LPL-S | H177: PLUS: | I177: =+C177 -> GLP | J177: =+E177 -> LPL-S
B179: Summer - all hrs | C179: =ROUND(+C107*$E$146,4) -> 4.6501 | H179: Gen Cost
B180: PSE&G On pk | E180: =ROUND(+E108*$E$146,4) -> 5.1322 | H180: summer | I180: =+I108 -> 5.2965 | J180: =+J108 -> 5.2965
B181: PSE&G Off pk | E181: =ROUND(+E109*$E$146,4) -> 4.1104 | H181: winter | I181: =+I109 -> 5.2965 | J181: =+J109 -> 5.2965
B183: Winter - all hrs | C183: =ROUND(+C111*$E$147,4) -> 4.8293 | H183: Trans cost
B184: PSE&G On pk | E184: =ROUND(+E112*$E$147,4) -> 5.1207 | H184: all months | I184: =+I112 -> 9.5534 | J184: =+J112 -> 9.5534
B185: PSE&G Off pk | E185: =ROUND(+E113*$E$147,4) -> 4.5641
A189: Table F | B189: Spreadsheet Error Checking - Checking of seasonal Customer Revenue and Supplier Payments, based on final actual anticipated revenues and payments
C191: RS | D191: RHS | E191: RLM | F191: WH | G191: WHS | H191: HS | I191: PSAL | J191: BPL | K191: GLP | L191: LPL-S
B192: Total Rate Revenue - in $1000
B193: Summer | C193: =+C165/100*bid_factors!O53+auction_results_and_rates!C166/100*bid_factors!O54 -> 594996.2393 | D193: =+D165/100*bid_factors!P53+auction_results_and_rates!D166/100*bid_factors!P54 -> 1880.615682 | E193: =+E162/100*bid_factors!Q50+E163/100*bid_factors!Q51 -> 10400.47692 | F193: =+F161/100*bid_factors!R49 -> 8.75292 | G193: =+G161/100*bid_factors!S49 -> 0.184668 | H193: =+H161/100*bid_factors!T49 -> 246.3312855 | I193: =+I161/100*bid_factors!U49 -> 1751.097764 | J193: =+J161/100*bid_factors!V49 -> 3263.8034 | K193: =+C179/100*bid_factors!W49+I180*bid_factors!K147*4+auction_results_and_rates!I184*bid_factors!K149*4 -> 210044.9928 | L193: =+E180/100*bid_factors!X50+auction_results_and_rates!E181/100*bid_factors!X51+auction_results_and_rates!J180*bid_factors!L147*4+auction_results_and_rates!J184*bid_factors!L149*4 -> 131274.5155
B194: Winter | C194: =+C168/100*bid_factors!O45 -> 782481.2098 | D194: =+D168/100*bid_factors!P45 -> 6648.080227 | E194: =+E169/100*bid_factors!Q46+auction_results_and_rates!E170/100*bid_factors!Q47 -> 10899.96012 | F194: =+F168/100*bid_factors!R45 -> 27.854784 | G194: =+G168/100*bid_factors!S45 -> 0.590436 | H194: =+H168/100*bid_factors!T45 -> 942.5223302 | I194: =+I168/100*bid_factors!U45 -> 5048.700558 | J194: =+J168/100*bid_factors!V45 -> 10509.8484 | K194: =+C183/100*bid_factors!W45+auction_results_and_rates!I181*bid_factors!K147*8+auction_results_and_rates!I184*bid_factors!K149*8 -> 400700.892 | L194: =+E184/100*bid_factors!X46+auction_results_and_rates!E185/100*bid_factors!X47+auction_results_and_rates!J181*bid_factors!L147*8+auction_results_and_rates!J184*bid_factors!L149*8 -> 255441.1666
B195: Total | C195: =+C194+C193 -> 1377477.449 | D195: 8528.69591 | E195: 21300.43704 | F195: 36.607704 | G195: 0.775104 | H195: 1188.853616 | I195: 6799.798322 | J195: 13773.6518 | K195: 610745.8848 | L195: 386715.6821
B197: Total Summer | C197: =SUM(C193:L193) -> 953867.0103
B198: Total Winter | C198: =SUM(C194:L194) -> 1472700.825
B199: Grand Total | C199: =+C198+C197 -> 2426567.835
B202: Total Supplier Payment - in $1000
B203: Summer | C203: =+C24+D24+E24 -> 953868.7867
B204: Winter | C204: =+C25+D25+E25 -> 1472702.206
B205: Total | C205: =+C204+C203 -> 2426570.992
B207: Differences - in $1000 | E207: % difference
B208: Summer | C208: =+C197-C203 -> -1.776464896 | E208: =+C208/C197 -> -1.862382152e-06
B209: Winter | C209: =+C198-C204 -> -1.380533483 | E209: =+C209/C198 -> -9.374161129e-07
B210: Total | C210: =+C199-C205 -> -3.156998379 | E210: =+C210/C199 -> -1.301013857e-06
